{"text_format":"1","workbook":"xlsx","n_sheets":3,"sheets":["Championnat par équipe","Données","Licenciés"],"not_rendered":{"charts":0,"images":2,"macros":1,"external_links":0,"defined_names":10,"comments":1,"pivot_tables":0},"unopened":[],"bounds":{"document_bytes":16777216,"sheet_cells":100000,"rows_first":2000,"rows_last":500,"rows_between":2000,"halvings":0,"cell_chars":16384,"cell_head_chars":4096},"cells_cut":0,"cells_raw":0,"read":"whole","date_system":"1900"}

{"sheet":"Championnat par équipe","index":0,"n_rows":34,"n_cols":19,"rows_kept":34,"cut":false,"hidden":false,"merged":[[0,0,1,15],[3,2,3,12],[5,3,5,4],[5,6,5,9],[6,3,6,4],[6,7,6,15],[13,3,13,6],[13,7,13,8],[13,10,13,13],[13,14,13,15],[10,10,10,13],[10,14,10,15],[11,3,11,6],[11,7,11,8],[11,10,11,13],[11,14,11,15],[14,0,14,15],[7,0,13,0],[7,2,7,6],[7,7,7,8],[7,9,7,13],[7,14,7,15],[8,2,8,6],[8,7,8,8],[8,9,8,13],[8,14,8,15],[10,3,10,6],[10,7,10,8],[12,3,12,6],[12,7,12,8],[12,10,12,13],[12,14,12,15],[15,0,15,4],[15,5,15,15],[16,2,16,3],[16,9,16,10],[17,2,17,3],[17,9,17,10],[18,2,18,3],[18,9,18,10],[19,2,19,3],[19,9,19,10],[20,2,20,3],[20,9,20,10],[21,2,21,3],[21,9,21,10],[22,2,22,3],[22,9,22,10],[23,2,23,3],[23,9,23,10],[24,2,24,3],[24,9,24,10],[25,2,25,3],[25,9,25,10],[28,2,28,4],[28,9,28,11],[29,2,30,4],[29,9,30,11],[32,4,32,14],[33,0,33,3],[33,4,33,14]]}
["LIGUE DE NORMANDIE DE BILLARD"]
[]
[]
[null,null,"Championnat \"PIERRE LESCAUT\""]
[]
[null,null,"Date : ",null,null,null,"DIVISION (de 1 à 7) :"]
[null,null,null,"(JJ/MM/AAAA)",null,null,null,"Le choix de la division provoque l'affichage des distances"]
["Version : 1.0  du : 06_10_2022",null,"Receveur",null,null,null,null,"Equipe",null,"Visiteur ",null,null,null,null,"Equipe"]
[]
[null,null,"Choisir le nom du club dans la liste ou le saisir manuellement",null,null,null,null,null,null,"Sélectionner le rang de l'équipe (A, B, C, etc.)"]
[null,null,"Joueur","Nom et Prénom",null,null,null,"Licence",null,"Joueur","Nom et Prénom",null,null,null,"Licence"]
[null,null,"A",null,null,null,null,{"$f":"IF(ISERROR(R12),\"Non licencié\",R12)","v":""},null,"X",null,null,null,null,{"$f":"IF(ISERROR(S12),\"Non licencié\",S12)","v":""},null,null,{"$f":"IF(D12<>\"\",VLOOKUP(D12,joueurs,2,0),\"\")","v":""},{"$f":"IF(K12<>\"\",VLOOKUP(K12,joueurs,2,0),\"\")","v":""}]
[null,null,"B",null,null,null,null,{"$f":"IF(ISERROR(R13),\"Non licencié\",R13)","v":""},null,"Y",null,null,null,null,{"$f":"IF(ISERROR(S13),\"Non licencié\",S13)","v":""},null,null,{"$f":"IF(D13<>\"\",VLOOKUP(D13,joueurs,2,0),\"\")","v":""},{"$f":"IF(K13<>\"\",VLOOKUP(K13,joueurs,2,0),\"\")","v":""}]
[null,null,"C",null,null,null,null,{"$f":"IF(ISERROR(R14),\"Non licencié\",R14)","v":""},null,"Z",null,null,null,null,{"$f":"IF(ISERROR(S14),\"Non licencié\",S14)","v":""},null,null,{"$f":"IF(D14<>\"\",VLOOKUP(D14,joueurs,2,0),\"\")","v":""},{"$f":"IF(K14<>\"\",VLOOKUP(K14,joueurs,2,0),\"\")","v":""}]
["Seules les cellules grisées sont à renseigner : manuellement ou à partir de listes préétablies"]
["Toutes les parties sont limitées à 40 reprises",null,null,null,null,"Si une équipe ne présente que 2 joueurs, saisir dans la cellule concernée \"Forfait\"\n(première donnée dans la liste proposée)"]
["Mode de jeu\net distance","Billard","Joueur",null,"Points","Reprises","Moyenne","Série","Points de match","Joueur",null,"Points","Reprises","Moyenne","Série","Points de match"]
["LIBRE",1,{"$f":"CONCATENATE($C$12,\" - \",$D$12,\" \",$F$12)","v":"A -  "},null,null,null,{"$f":"IF(F18>0,E18/F18,\" \")","v":" "},null,{"$f":"IF(D12=\"Forfait\",0,IF(K12=\"Forfait\",2,IF(ISBLANK(L18),\"\",IF(E18>L18,2,IF(E18=L18,1,0)))))","v":""},{"$f":"CONCATENATE($J$12,\" - \",$K$12,\" \",$M$12)","v":"X -  "},null,null,{"$f":"IF(F18>0,F18,\"\")","v":""},{"$f":"IF(F18>0,L18/M18,\" \")","v":" "},null,{"$f":"IF(K12=\"Forfait\",0,IF(I18<>\"\",2-I18,\"\"))","v":""}]
[{"$f":"IF($K$6=1,100,IF($K$6=2,80,IF($K$6=3,70,IF($K$6=4,60,IF($K$6=5,45,IF($K$6=6,35,IF($K$6=7,30,\"\")))))))","v":""},2,{"$f":"CONCATENATE($C$13,\" - \",$D$13,\" \",$F$13)","v":"B -  "},null,null,null," ",null,{"$f":"IF(D13=\"Forfait\",0,IF(K13=\"Forfait\",2,IF(ISBLANK(L19),\"\",IF(E19>L19,2,IF(E19=L19,1,0)))))","v":""},{"$f":"CONCATENATE($J$13,\" - \",$K$13,\" \",$M$13)","v":"Y -  "},null,null,""," ",null,{"$f":"IF(K13=\"Forfait\",0,IF(I19<>\"\",2-I19,\"\"))","v":""}]
["points",3,{"$f":"CONCATENATE($C$14,\" - \",$D$14,\" \",$F$14)","v":"C -  "},null,null,null," ",null,{"$f":"IF(D14=\"Forfait\",0,IF(K14=\"Forfait\",2,IF(ISBLANK(L20),\"\",IF(E20>L20,2,IF(E20=L20,1,0)))))","v":""},{"$f":"CONCATENATE($J$14,\" - \",$K$14,\" \",$M$14)","v":"Z -  "},null,null,""," ",null,{"$f":"IF(K14=\"Forfait\",0,IF(I20<>\"\",2-I20,\"\"))","v":""}]
["BANDE",{"$f":"IF(B20<>\"\",B20,\"\")","v":3},{"$f":"CONCATENATE($C$13,\" - \",$D$13,\" \",$F$13)","v":"B -  "},null,null,null," ",null,{"$f":"IF(D13=\"Forfait\",0,IF(K12=\"Forfait\",2,IF(ISBLANK(L21),\"\",IF(E21>L21,2,IF(E21=L21,1,0)))))","v":""},{"$f":"CONCATENATE($J$12,\" - \",$K$12,\" \",$M$12)","v":"X -  "},null,null,""," ",null,{"$f":"IF(K12=\"Forfait\",0,IF(I21<>\"\",2-I21,\"\"))","v":""}]
[{"$f":"IF($K$6=1,55,IF($K$6=2,45,IF($K$6=3,40,IF($K$6=4,35,IF($K$6=5,30,IF($K$6=6,20,IF($K$6=7,0,\"\")))))))","v":""},{"$f":"IF(B18<>\"\",B18,\"\")","v":1},{"$f":"CONCATENATE($C$14,\" - \",$D$14,\" \",$F$14)","v":"C -  "},null,null,null," ",null,{"$f":"IF(D14=\"Forfait\",0,IF(K13=\"Forfait\",2,IF(ISBLANK(L22),\"\",IF(E22>L22,2,IF(E22=L22,1,0)))))","v":""},{"$f":"CONCATENATE($J$13,\" - \",$K$13,\" \",$M$13)","v":"Y -  "},null,null,""," ",null,{"$f":"IF(K13=\"Forfait\",0,IF(I22<>\"\",2-I22,\"\"))","v":""}]
["points",{"$f":"IF(B19<>\"\",B19,\"\")","v":2},{"$f":"CONCATENATE($C$12,\" - \",$D$12,\" \",$F$12)","v":"A -  "},null,null,null," ",null,{"$f":"IF(D12=\"Forfait\",0,IF(K14=\"Forfait\",2,IF(ISBLANK(L23),\"\",IF(E23>L23,2,IF(E23=L23,1,0)))))","v":""},{"$f":"CONCATENATE($J$14,\" - \",$K$14,\" \",$M$14)","v":"Z -  "},null,null,""," ",null,{"$f":"IF(K14=\"Forfait\",0,IF(I23<>\"\",2-I23,\"\"))","v":""}]
["3 BANDES",{"$f":"IF(B20<>\"\",B20,\"\")","v":3},{"$f":"CONCATENATE($C$12,\" - \",$D$12,\" \",$F$12)","v":"A -  "},null,null,null," ",null,{"$f":"IF(D12=\"Forfait\",0,IF(K13=\"Forfait\",2,IF(ISBLANK(L24),\"\",IF(E24>L24,2,IF(E24=L24,1,0)))))","v":""},{"$f":"CONCATENATE($J$13,\" - \",$K$13,\" \",$M$13)","v":"Y -  "},null,null,""," ",null,{"$f":"IF(K13=\"Forfait\",0,IF(I24<>\"\",2-I24,\"\"))","v":""}]
[{"$f":"IF($K$6=1,18,IF($K$6=2,14,IF($K$6=3,12,IF($K$6=4,11,IF($K$6=5,8,IF($K$6=6,7,IF($K$6=7,0,\"\")))))))","v":""},{"$f":"IF(B18<>\"\",B18,\"\")","v":1},{"$f":"CONCATENATE($C$13,\" - \",$D$13,\" \",$F$13)","v":"B -  "},null,null,null," ",null,{"$f":"IF(D13=\"Forfait\",0,IF(K14=\"Forfait\",2,IF(ISBLANK(L25),\"\",IF(E25>L25,2,IF(E25=L25,1,0)))))","v":""},{"$f":"CONCATENATE($J$14,\" - \",$K$14,\" \",$M$14)","v":"Z -  "},null,null,""," ",null,{"$f":"IF(K14=\"Forfait\",0,IF(I25<>\"\",2-I25,\"\"))","v":""}]
["points",{"$f":"IF(B19<>\"\",B19,\"\")","v":2},{"$f":"CONCATENATE($C$14,\" - \",$D$14,\" \",$F$14)","v":"C -  "},null,null,null," ",null,{"$f":"IF(D14=\"Forfait\",0,IF(K12=\"Forfait\",2,IF(ISBLANK(L26),\"\",IF(E26>L26,2,IF(E26=L26,1,0)))))","v":""},{"$f":"CONCATENATE($J$12,\" - \",$K$12,\" \",$M$12)","v":"X -  "},null,null,""," ",null,{"$f":"IF(K12=\"Forfait\",0,IF(I26<>\"\",2-I26,\"\"))","v":""}]
[]
[null,null,null,null,"Total des points de match",null,null,null,{"$f":"SUM(I18:I26)","v":0},null,null,"Total des points de match",null,null,null,{"$f":"SUM(P18:P26)","v":0}]
[null,null,"Signature du capitaine",null,null,null,null,null,null,"Signature du capitaine"]
[]
[]
[]
["Cette feuille est à transmettre à : ",null,null,null,"Francis PITOIS"]
["lnb_chpt_lescaut@billardnormandie.fr",null,null,null,"Téléphone : 06 59 70 29 74     "]

{"sheet":"Données","index":1,"n_rows":479,"n_cols":19,"rows_kept":479,"cut":false,"hidden":true,"merged":[]}
["Liste des clubs carambole",null,"Billard",null,"Equipes",null,"Divisions",null,null,null,null,null,"Identités","Licence","Club"]
["ARGENCES (ABC)",null,1,null,"Equipe A",null,1,null,null,null,null,null,"Forfait",0,"xxxxxxx"]
["ARGENTAN (PLA)",null,2,null,"Equipe B",null,2,null,null,null,"ABAD","JEAN",{"$f":"CONCATENATE(K3,\" \",L3)","v":"ABAD JEAN"},"162296 J",null,null,null,null,{"$f":"CONCATENATE(Q3,\" \",R3)","v":" "}]
["BERNAY (BBC)",null,3,null,"Equipe C",null,3,null,null,null,"ADNET","FABRICE","ADNET FABRICE","017652 Y",null,null,null,null," "]
["CANY-BARVILLE (BCCB)",null,4,null,"Equipe D",null,4,null,null,null,"AHAMD","ABDUZALIL","AHAMD ABDUZALIL","134671 R",null,null,null,null," "]
["CORMELLES (BCC)",null,5,null,"Equipe E",null,5,null,null,null,"ALEXANDRE","JACQUES","ALEXANDRE JACQUES","017869 H",null,null,null,null," "]
["EVREUX (BCE)",null,6,null,null,null,6,null,null,null,"ALLIX","GERARD","ALLIX GERARD","165041 S",null,null,null,null," "]
["FECAMP (BCF)",null,7,null,null,null,7,null,null,null,"AMELINE","JEAN JACQUES","AMELINE JEAN JACQUES","174243 V",null,null,null,null," "]
["FLEURY/ANDELLE (FBC)",null,8,null,null,null,null,null,null,null,"ANTEM","ANTOINE","ANTEM ANTOINE","017606 E",null,null,null,null," "]
["GAILLON (BCG)",null,9,null,null,null,null,null,null,null,"ARFELLI","GILLES","ARFELLI GILLES","173854 X",null,null,null,null," "]
["LA SAUSSAYE (BCS)",null,null,null,null,null,null,null,null,null,"ARGENTIN","JEAN LUC","ARGENTIN JEAN LUC","137351 T",null,null,null,null," "]
["LE HAVRE (CEHB)",null,null,null,null,null,null,null,null,null,"ARRIVE","JEAN LUC","ARRIVE JEAN LUC","100560 S",null,null,null,null," "]
["LES ANDELYS (BCA)",null,null,null,null,null,null,null,null,null,"AZIZIAN","RICHARD","AZIZIAN RICHARD","017803 T",null,null,null,null," "]
["LISIEUX (BCL)",null,null,null,null,null,null,null,null,null,"BAERT","PHILIPPE","BAERT PHILIPPE","172578 K",null,null,null,null," "]
["LOUVIERS (BACL)",null,null,null,null,null,null,null,null,null,"BAIS","PHILIPPE","BAIS PHILIPPE","153013 T",null,null,null,null," "]
["MAROMME",null,null,null,null,null,null,null,null,null,"BALTER","PATRICK","BALTER PATRICK","173722 D"]
["OISSEL (BCO)",null,null,null,null,null,null,null,null,null,"BARETTE","ROMAIN","BARETTE ROMAIN","163804 Y",null,null,null,null,{"$f":"CONCATENATE(Q17,\" \",R17)","v":" "}]
["PACY/EURE (BCP)",null,null,null,null,null,null,null,null,null,"BATAILLE","VINCENT","BATAILLE VINCENT","017754 W",null,null,null,null,{"$f":"CONCATENATE(Q18,\" \",R18)","v":" "}]
["ROUEN (RBC)",null,null,null,null,null,null,null,null,null,"BATTE","JEAN MARC","BATTE JEAN MARC","017531 H",null,null,null,null,{"$f":"CONCATENATE(Q19,\" \",R19)","v":" "}]
["RUGLES (USR-BC)",null,null,null,null,null,null,null,null,null,"BAUDER","GILBERT","BAUDER GILBERT","017689 J",null,null,null,null,{"$f":"CONCATENATE(Q20,\" \",R20)","v":" "}]
["SAINT MARCEL (BCSM)",null,null,null,null,null,null,null,null,null,"BAUX","REGIS","BAUX REGIS","148240 F",null,null,null,null,{"$f":"CONCATENATE(Q21,\" \",R21)","v":" "}]
["SAINT NICOLAS (BCSNA)",null,null,null,null,null,null,null,null,null,"BAZAUD","FRANCK","BAZAUD FRANCK","122758 M"]
["SOTTEVILLE (BCS)",null,null,null,null,null,null,null,null,null,"BEAUGRAND","CHRISTIAN","BEAUGRAND CHRISTIAN","161679 N",null,null,null,null,{"$f":"CONCATENATE(Q23,\" \",R23)","v":" "}]
["URVILLE (ASSUN BC)",null,null,null,null,null,null,null,null,null,"BELDAME","DANIEL","BELDAME DANIEL","112270 C",null,null,null,null," "]
[null,null,null,null,null,null,null,null,null,null,"BELINY","GILLES","BELINY GILLES","017706 A",null,null,null,null," "]
[null,null,null,null,null,null,null,null,null,null,"BENDJEMILA","TOFIR","BENDJEMILA TOFIR","017734 C",null,null,null,null," "]
[null,null,null,null,null,null,null,null,null,null,"BERMENT","DIDIER","BERMENT DIDIER","129135 T",null,null,null,null," "]
[null,null,null,null,null,null,null,null,null,null,"BERTRAND","MICHEL","BERTRAND MICHEL","142970 W",null,null,null,null," "]
[null,null,null,null,null,null,null,null,null,null,"BESLIN","DANIEL","BESLIN DANIEL","172500 A",null,null,null,null," "]
[null,null,null,null,null,null,null,null,null,null,"BETON","DOMINIQUE","BETON DOMINIQUE","017629 B",null,null,null,null," "]
[null,null,null,null,null,null,null,null,null,null,"BETON","VALERIE","BETON VALERIE","147263 T",null,null,null,null," "]
[null,null,null,null,null,null,null,null,null,null,"BEZARD","GEORGES","BEZARD GEORGES","137339 H",null,null,null,null," "]
[null,null,null,null,null,null,null,null,null,null,"BEZNOSUC","MARIE JOSE","BEZNOSUC MARIE JOSE","169239 F",null,null,null,null," "]
[null,null,null,null,null,null,null,null,null,null,"BIANCHINI","JEAN ROBERT","BIANCHINI JEAN ROBERT","106781 Z",null,null,null,null," "]
[null,null,null,null,null,null,null,null,null,null,"BIDAULT","ALAIN","BIDAULT ALAIN","160279 R",null,null,null,null," "]
[null,null,null,null,null,null,null,null,null,null,"BIETTE","CLAUDE","BIETTE CLAUDE","017497 Z",null,null,null,null," "]
[null,null,null,null,null,null,null,null,null,null,"BILLARD","DAVID","BILLARD DAVID","017465 T",null,null,null,null," "]
[null,null,null,null,null,null,null,null,null,null,"BLONDEL","JEAN THIERRY","BLONDEL JEAN THIERRY","144155 L",null,null,null,null," "]
[null,null,null,null,null,null,null,null,null,null,"BOCQUAIN","JEAN PIERRE","BOCQUAIN JEAN PIERRE","112554 A",null,null,null,null," "]
[null,null,null,null,null,null,null,null,null,null,"BOGO","JACQUES","BOGO JACQUES","138293 Z",null,null,null,null," "]
[null,null,null,null,null,null,null,null,null,null,"BONHOMME","ERIC","BONHOMME ERIC","144156 M",null,null,null,null," "]
[null,null,null,null,null,null,null,null,null,null,"BOSSI","DAMIEN","BOSSI DAMIEN","174332 R",null,null,null,null," "]
[null,null,null,null,null,null,null,null,null,null,"BOSSI","GASPARD","BOSSI GASPARD","174334 T",null,null,null,null," "]
[null,null,null,null,null,null,null,null,null,null,"BOSSI","MARTIN","BOSSI MARTIN","174333 S",null,null,null,null," "]
[null,null,null,null,null,null,null,null,null,null,"BOUGOUIN","JEAN MICHEL","BOUGOUIN JEAN MICHEL","149537 Q",null,null,null,null," "]
[null,null,null,null,null,null,null,null,null,null,"BOULAIRE","PATRICK","BOULAIRE PATRICK","174256 J",null,null,null,null," "]
[null,null,null,null,null,null,null,null,null,null,"BOULIER","ALAIN","BOULIER ALAIN","152578 W",null,null,null,null," "]
[null,null,null,null,null,null,null,null,null,null,"BOURGET","ALAIN","BOURGET ALAIN","017466 U",null,null,null,null," "]
[null,null,null,null,null,null,null,null,null,null,"BOUTILLOT","CHRISTIAN","BOUTILLOT CHRISTIAN","163734 X",null,null,null,null," "]
[null,null,null,null,null,null,null,null,null,null,"BOUTIN","GUY","BOUTIN GUY","124623 F",null,null,null,null," "]
[null,null,null,null,null,null,null,null,null,null,"BOUTTIER","JACKY","BOUTTIER JACKY","153690 E",null,null,null,null," "]
[null,null,null,null,null,null,null,null,null,null,"BOUVIER","BERTRAND","BOUVIER BERTRAND","149399 Q",null,null,null,null," "]
[null,null,null,null,null,null,null,null,null,null,"BOUVIER","GUILLAUME","BOUVIER GUILLAUME","149400 R",null,null,null,null," "]
[null,null,null,null,null,null,null,null,null,null,"BRAEMS","FLORIAN","BRAEMS FLORIAN","160931 A",null,null,null,null," "]
[null,null,null,null,null,null,null,null,null,null,"BRASSE","DANIEL","BRASSE DANIEL","131474 S",null,null,null,null,{"$f":"CONCATENATE(Q55,\" \",R55)","v":" "}]
[null,null,null,null,null,null,null,null,null,null,"BRETTEVILLE","DENIS","BRETTEVILLE DENIS","127508 E",null,null,null,null," "]
[null,null,null,null,null,null,null,null,null,null,"BROWANG","CLAUDE","BROWANG CLAUDE","107038 W",null,null,null,null," "]
[null,null,null,null,null,null,null,null,null,null,"BROWANG","JEROME","BROWANG JEROME","107039 X",null,null,null,null," "]
[null,null,null,null,null,null,null,null,null,null,"BROWANG","MICHEL","BROWANG MICHEL","107040 Y",null,null,null,null," "]
[null,null,null,null,null,null,null,null,null,null,"BRULARD","DANIEL","BRULARD DANIEL","017658 E",null,null,null,null," "]
[null,null,null,null,null,null,null,null,null,null,"BRUNET","ANDRE","BRUNET ANDRE","017746 O",null,null,null,null," "]
[null,null,null,null,null,null,null,null,null,null,"BUCHET MAULIEN","ISABELLE","BUCHET MAULIEN ISABELLE","173097 Z",null,null,null,null," "]
[null,null,null,null,null,null,null,null,null,null,"BURGOT","FRANCINE","BURGOT FRANCINE","169893 R",null,null,null,null," "]
[null,null,null,null,null,null,null,null,null,null,"BURGOT","FRANCOIS","BURGOT FRANCOIS","169892 Q",null,null,null,null," "]
[null,null,null,null,null,null,null,null,null,null,"BUSTOS","MIGUEL ANGEL","BUSTOS MIGUEL ANGEL","171767 D",null,null,null,null," "]
[null,null,null,null,null,null,null,null,null,null,"BUTELET","JEAN PAUL","BUTELET JEAN PAUL","017610 I",null,null,null,null," "]
[null,null,null,null,null,null,null,null,null,null,"CADINOT","SEBASTIEN",{"$f":"CONCATENATE(K67,\" \",L67)","v":"CADINOT SEBASTIEN"},"158947 T",null,null,null,null," "]
[null,null,null,null,null,null,null,null,null,null,"CALLENS","TIMEO","CALLENS TIMEO","166291 B",null,null,null,null," "]
[null,null,null,null,null,null,null,null,null,null,"CANNEVIERE","PATRICIA","CANNEVIERE PATRICIA","173468 C",null,null,null,null," "]
[null,null,null,null,null,null,null,null,null,null,"CANU","BERTRAND","CANU BERTRAND","174111 B",null,null,null,null," "]
[null,null,null,null,null,null,null,null,null,null,"CAPELLE","CLAUDE","CAPELLE CLAUDE","158920 P",null,null,null,null," "]
[null,null,null,null,null,null,null,null,null,null,"CARDON","JEAN PIERRE","CARDON JEAN PIERRE","112578 Y",null,null,null,null," "]
[null,null,null,null,null,null,null,null,null,null,"CARPENTIER","DIDIER","CARPENTIER DIDIER","152654 D",null,null,null,null," "]
[null,null,null,null,null,null,null,null,null,null,"CARRE","PIERRE","CARRE PIERRE","017467 V",null,null,null,null," "]
[null,null,null,null,null,null,null,null,null,null,"CAUWET","NOEL","CAUWET NOEL","104533 N",null,null,null,null," "]
[null,null,null,null,null,null,null,null,null,null,"CAZAUX","JEAN MARC","CAZAUX JEAN MARC","017643 P",null,null,null,null," "]
[null,null,null,null,null,null,null,null,null,null,"CAZEAUBON","SERGE","CAZEAUBON SERGE","167848 T",null,null,null,null," "]
[null,null,null,null,null,null,null,null,null,null,"CHAGNOT","JEAN CLAUDE","CHAGNOT JEAN CLAUDE","017621 T",null,null,null,null," "]
[null,null,null,null,null,null,null,null,null,null,"CHALVET","PATRICE","CHALVET PATRICE","018027 J",null,null,null,null," "]
[null,null,null,null,null,null,null,null,null,null,"CHAMP","FRANCOIS","CHAMP FRANCOIS","159430 T",null,null,null,null," "]
[null,null,null,null,null,null,null,null,null,null,"CHAPLEAU","FRANCOIS","CHAPLEAU FRANCOIS","137817 R",null,null,null,null," "]
[null,null,null,null,null,null,null,null,null,null,"CHARBONNIER","PHILIPPE","CHARBONNIER PHILIPPE","127340 S",null,null,null,null," "]
[null,null,null,null,null,null,null,null,null,null,"CHESNEAU","JACQUES","CHESNEAU JACQUES","133832 K",null,null,null,null," "]
[null,null,null,null,null,null,null,null,null,null,"CHESNEL","MATHIEU","CHESNEL MATHIEU","017896 I",null,null,null,null," "]
[null,null,null,null,null,null,null,null,null,null,"CHEVALIER","CEDRIC","CHEVALIER CEDRIC","173153 K",null,null,null,null," "]
[null,null,null,null,null,null,null,null,null,null,"CHEVALIER","PHILIPPE","CHEVALIER PHILIPPE","126208 E",null,null,null,null," "]
[null,null,null,null,null,null,null,null,null,null,"CHOLLET","LIONEL","CHOLLET LIONEL","107240 Q",null,null,null,null,{"$f":"CONCATENATE(Q87,\" \",R87)","v":" "}]
[null,null,null,null,null,null,null,null,null,null,"CHOQUART","PIERRE","CHOQUART PIERRE","133876 C",null,null,null,null," "]
[null,null,null,null,null,null,null,null,null,null,"CHOUPAUT","BRUNO","CHOUPAUT BRUNO","151711 D",null,null,null,null," "]
[null,null,null,null,null,null,null,null,null,null,"COCHARD","PATRICK","COCHARD PATRICK","145961 X",null,null,null,null," "]
[null,null,null,null,null,null,null,null,null,null,"COCY","GILLES","COCY GILLES","017709 D",null,null,null,null," "]
[null,null,null,null,null,null,null,null,null,null,"COGNEE","BRUNO","COGNEE BRUNO","166629 T",null,null,null,null," "]
[null,null,null,null,null,null,null,null,null,null,"COLLE","GREGORY","COLLE GREGORY","017823 N",null,null,null,null," "]
[null,null,null,null,null,null,null,null,null,null,"COLLE CONTE","LUDOVIC","COLLE CONTE LUDOVIC","172023 G",null,null,null,null," "]
[null,null,null,null,null,null,null,null,null,null,"COLOMER","ALAIN","COLOMER ALAIN","172501 B",null,null,null,null," "]
[null,null,null,null,null,null,null,null,null,null,"CORNILLEAUX","ALAIN","CORNILLEAUX ALAIN","173469 D",null,null,null,null," "]
[null,null,null,null,null,null,null,null,null,null,"CORNO","YVES","CORNO YVES","142307 J",null,null,null,null," "]
[null,null,null,null,null,null,null,null,null,null,"COTTEN","JEAN PIERRE","COTTEN JEAN PIERRE","017516 S",null,null,null,null," "]
[null,null,null,null,null,null,null,null,null,null,"COUCHOT","BERNARD","COUCHOT BERNARD","112010 C",null,null,null,null," "]
[null,null,null,null,null,null,null,null,null,null,"COUCKE","CHRISTIAN","COUCKE CHRISTIAN","136041 J",null,null,null,null," "]
[null,null,null,null,null,null,null,null,null,null,"CRESCI","PIERRE","CRESCI PIERRE","145454 K",null,null,null,null," "]
[null,null,null,null,null,null,null,null,null,null,"CUGNIN","GEORGES","CUGNIN GEORGES","017543 T",null,null,null,null," "]
[null,null,null,null,null,null,null,null,null,null,"CURCIO","JEAN DENIS","CURCIO JEAN DENIS","143612 O",null,null,null,null," "]
[null,null,null,null,null,null,null,null,null,null,"CUVIER","GILLES","CUVIER GILLES","120322 U",null,null,null,null," "]
[null,null,null,null,null,null,null,null,null,null,"CUVILLIEZ","FRANCOISE","CUVILLIEZ FRANCOISE","150560 C",null,null,null,null," "]
[null,null,null,null,null,null,null,null,null,null,"DAIGLE","MICHEL","DAIGLE MICHEL","145242 G",null,null,null,null," "]
[null,null,null,null,null,null,null,null,null,null,"DAUSSY","JEAN CLAUDE","DAUSSY JEAN CLAUDE","148177 M",null,null,null,null," "]
[null,null,null,null,null,null,null,null,null,null,"DAUTRY","ANNICK","DAUTRY ANNICK","106284 W",null,null,null,null," "]
[null,null,null,null,null,null,null,null,null,null,"DAVITTI","CLAUDE","DAVITTI CLAUDE","144074 I",null,null,null,null," "]
[null,null,null,null,null,null,null,null,null,null,"DAVOINE","BRUNO","DAVOINE BRUNO","017482 K"]
[null,null,null,null,null,null,null,null,null,null,"DAYRAS","PHILIPPE","DAYRAS PHILIPPE","163749 N",null,null,null,null," "]
[null,null,null,null,null,null,null,null,null,null,"DE TOFFOLI","JEAN ANTOINE","DE TOFFOLI JEAN ANTOINE","017476 E",null,null,null,null," "]
[null,null,null,null,null,null,null,null,null,null,"DELALANDRE","FRANCOIS","DELALANDRE FRANCOIS","168981 A",null,null,null,null," "]
[null,null,null,null,null,null,null,null,null,null,"DELALANDRE","VERONIQUE","DELALANDRE VERONIQUE","168982 B",null,null,null,null," "]
[null,null,null,null,null,null,null,null,null,null,"DELALONDRE","MAX","DELALONDRE MAX","110690 I",null,null,null,null," "]
[null,null,null,null,null,null,null,null,null,null,"DELAMARRE","ERIC","DELAMARRE ERIC","129114 Y",null,null,null,null," "]
[null,null,null,null,null,null,null,null,null,null,"DELAPORTE","FELIX","DELAPORTE FELIX","136045 N",null,null,null,null," "]
[null,null,null,null,null,null,null,null,null,null,"DELARUE","JEAN FRANCOIS","DELARUE JEAN FRANCOIS","165274 W",null,null,null,null," "]
[null,null,null,null,null,null,null,null,null,null,"DELEGLISE","THIERRY","DELEGLISE THIERRY","129402 A",null,null,null,null," "]
[null,null,null,null,null,null,null,null,null,null,"DELIGNY","JEAN CLAUDE","DELIGNY JEAN CLAUDE","100518 C",null,null,null,null,{"$f":"CONCATENATE(Q120,\" \",R120)","v":" "}]
[null,null,null,null,null,null,null,null,null,null,"DEMERE","CHRISTIAN","DEMERE CHRISTIAN","124007 N",null,null,null,null," "]
[null,null,null,null,null,null,null,null,null,null,"DENIS","ERIC","DENIS ERIC","162693 Q",null,null,null,null," "]
[null,null,null,null,null,null,null,null,null,null,"DENZEN LELAIDIER","DOLCHE","DENZEN LELAIDIER DOLCHE","168817 X",null,null,null,null," "]
[null,null,null,null,null,null,null,null,null,null,"DEPARIS","PATRICK","DEPARIS PATRICK","142823 F",null,null,null,null," "]
[null,null,null,null,null,null,null,null,null,null,"DESCHAMPS","MICHEL","DESCHAMPS MICHEL","172071 J",null,null,null,null," "]
[null,null,null,null,null,null,null,null,null,null,"DESHERAUD","RAYMOND","DESHERAUD RAYMOND","169252 V",null,null,null,null," "]
[null,null,null,null,null,null,null,null,null,null,"DESIL","ERIC","DESIL ERIC","172881 P",null,null,null,null," "]
[null,null,null,null,null,null,null,null,null,null,"DESRUES","PATRICK","DESRUES PATRICK","173474 J"]
[null,null,null,null,null,null,null,null,null,null,"DEVILLERS","JACQUES","DEVILLERS JACQUES","122704 K",null,null,null,null,{"$f":"CONCATENATE(Q129,\" \",R129)","v":" "}]
[null,null,null,null,null,null,null,null,null,null,"DEZETANT","MARCEL","DEZETANT MARCEL","017627 Z",null,null,null,null," "]
[null,null,null,null,null,null,null,null,null,null,"DIAGA RADJOU","VINCENT","DIAGA RADJOU VINCENT","109583 T",null,null,null,null," "]
[null,null,null,null,null,null,null,null,null,null,"DOGUET","DENIS",{"$f":"CONCATENATE(K132,\" \",L132)","v":"DOGUET DENIS"},"173470 E",null,null,null,null," "]
[null,null,null,null,null,null,null,null,null,null,"DOMENGER","JEAN FRANCOIS","DOMENGER JEAN FRANCOIS","164326 Q",null,null,null,null," "]
[null,null,null,null,null,null,null,null,null,null,"DONNEGER","ABEL","DONNEGER ABEL","017790 G",null,null,null,null," "]
[null,null,null,null,null,null,null,null,null,null,"DU BOUCHAGE","MICKAEL","DU BOUCHAGE MICKAEL","126212 I",null,null,null,null," "]
[null,null,null,null,null,null,null,null,null,null,"DUBOIS","THIERRY","DUBOIS THIERRY","169451 L",null,null,null,null," "]
[null,null,null,null,null,null,null,null,null,null,"DUCATHE","PHILIPPE","DUCATHE PHILIPPE","164840 Z",null,null,null,null," "]
[null,null,null,null,null,null,null,null,null,null,"DUCROCQ","DIDIER","DUCROCQ DIDIER","145451 H",null,null,null,null," "]
[null,null,null,null,null,null,null,null,null,null,"DUGUET","DIDIER","DUGUET DIDIER","173897 T",null,null,null,null," "]
[null,null,null,null,null,null,null,null,null,null,"DUMARTIN","BERTRAND","DUMARTIN BERTRAND","163172 L",null,null,null,null," "]
[null,null,null,null,null,null,null,null,null,null,"DUMOND","PIERRE","DUMOND PIERRE","136046 O",null,null,null,null," "]
[null,null,null,null,null,null,null,null,null,null,"DUMONT","DOMINIQUE","DUMONT DOMINIQUE","017926 M",null,null,null,null," "]
[null,null,null,null,null,null,null,null,null,null,"DUONG","KHENN","DUONG KHENN","161710 X",null,null,null,null," "]
[null,null,null,null,null,null,null,null,null,null,"DUPONCHEL","ALAIN","DUPONCHEL ALAIN","112556 C",null,null,null,null," "]
[null,null,null,null,null,null,null,null,null,null,"DUPRE","PATRICK","DUPRE PATRICK","100586 S",null,null,null,null," "]
[null,null,null,null,null,null,null,null,null,null,"DUPREZ","GREGORY","DUPREZ GREGORY","173817 G",null,null,null,null," "]
[null,null,null,null,null,null,null,null,null,null,"DURANTI","GILLES","DURANTI GILLES","138224 I",null,null,null,null," "]
[null,null,null,null,null,null,null,null,null,null,"DURDEK","ALAIN","DURDEK ALAIN","168816 W",null,null,null,null," "]
[null,null,null,null,null,null,null,null,null,null,"DUTHIL","JEAN","DUTHIL JEAN","017820 K",null,null,null,null," "]
[null,null,null,null,null,null,null,null,null,null,"DUTOT","GERALD","DUTOT GERALD","145692 O",null,null,null,null," "]
[null,null,null,null,null,null,null,null,null,null,"DUVAL","JEAN PAUL","DUVAL JEAN PAUL","157684 W",null,null,null,null," "]
[null,null,null,null,null,null,null,null,null,null,"DUVAL","MICHEL","DUVAL MICHEL","146926 C",null,null,null,null," "]
[null,null,null,null,null,null,null,null,null,null,"DUVAL","RENE","DUVAL RENE","129045 H",null,null,null,null," "]
[null,null,null,null,null,null,null,null,null,null,"EICHHOLTZER","CLAUDE","EICHHOLTZER CLAUDE","125798 K",null,null,null,null," "]
[null,null,null,null,null,null,null,null,null,null,"ELIE","JOANNES","ELIE JOANNES","142933 L",null,null,null,null," "]
[null,null,null,null,null,null,null,null,null,null,"ENAULT","PATRICE","ENAULT PATRICE","174331 Q",null,null,null,null," "]
[null,null,null,null,null,null,null,null,null,null,"ERONTE","MICHEL","ERONTE MICHEL","017986 U",null,null,null,null," "]
[null,null,null,null,null,null,null,null,null,null,"ESLIER","GUY","ESLIER GUY","112009 B",null,null,null,null," "]
[null,null,null,null,null,null,null,null,null,null,"EUDIER","DIDIER","EUDIER DIDIER","159595 Y",null,null,null,null," "]
[null,null,null,null,null,null,null,null,null,null,"EVRARD","JAMES","EVRARD JAMES","157076 K",null,null,null,null," "]
[null,null,null,null,null,null,null,null,null,null,"FACQUET","VINCENT","FACQUET VINCENT","013085 H",null,null,null,null,{"$f":"CONCATENATE(Q161,\" \",R161)","v":" "}]
[null,null,null,null,null,null,null,null,null,null,"FAISANT","RAYMOND","FAISANT RAYMOND","012137 V",null,null,null,null," "]
[null,null,null,null,null,null,null,null,null,null,"FERNANDEZ","ROBIN","FERNANDEZ ROBIN","141784 G",null,null,null,null," "]
[null,null,null,null,null,null,null,null,null,null,"FERRON","JEAN MARC","FERRON JEAN MARC","164847 G",null,null,null,null," "]
[null,null,null,null,null,null,null,null,null,null,"FESTE","MICHEL","FESTE MICHEL","169338 N",null,null,null,null," "]
[null,null,null,null,null,null,null,null,null,null,"FLEURY","YVES","FLEURY YVES","100521 F",null,null,null,null," "]
[null,null,null,null,null,null,null,null,null,null,"FONTAINE","YANN","FONTAINE YANN","131886 O",null,null,null,null," "]
[null,null,null,null,null,null,null,null,null,null,"FOSSEY","MATHIEU","FOSSEY MATHIEU","168801 E",null,null,null,null," "]
[null,null,null,null,null,null,null,null,null,null,"FOUCRET","STEPHANE","FOUCRET STEPHANE","104154 Y",null,null,null,null," "]
[null,null,null,null,null,null,null,null,null,null,"FREGER","XAVIER","FREGER XAVIER","168691 K",null,null,null,null," "]
[null,null,null,null,null,null,null,null,null,null,"GARREAU","CYRIL","GARREAU CYRIL","147667 H",null,null,null,null," "]
[null,null,null,null,null,null,null,null,null,null,"GAURY","FREDERIC","GAURY FREDERIC","173956 H",null,null,null,null," "]
[null,null,null,null,null,null,null,null,null,null,"GAUTIER","ALAIN","GAUTIER ALAIN","169561 F",null,null,null,null," "]
[null,null,null,null,null,null,null,null,null,null,"GERMAIN","CYRILLE","GERMAIN CYRILLE","017461 P",null,null,null,null," "]
[null,null,null,null,null,null,null,null,null,null,"GERVAIS","PHILIPPE","GERVAIS PHILIPPE","152579 X",null,null,null,null," "]
[null,null,null,null,null,null,null,null,null,null,"GESTIN","JACQUES","GESTIN JACQUES","154536 Z",null,null,null,null," "]
[null,null,null,null,null,null,null,null,null,null,"GEYER","SERGE","GEYER SERGE","017687 H",null,null,null,null," "]
[null,null,null,null,null,null,null,null,null,null,"GILLE","NICOLAS","GILLE NICOLAS","163946 C",null,null,null,null," "]
[null,null,null,null,null,null,null,null,null,null,"GILLE","PHILIPPE","GILLE PHILIPPE","102207 B",null,null,null,null," "]
[null,null,null,null,null,null,null,null,null,null,"GILLOT","MARCEL","GILLOT MARCEL","013242 I"]
[null,null,null,null,null,null,null,null,null,null,"GNOCCHI","GIANPAOLO","GNOCCHI GIANPAOLO","124614 W"]
[null,null,null,null,null,null,null,null,null,null,"GODILLE","SYLVAIN","GODILLE SYLVAIN","126213 J",null,null,null,null,{"$f":"CONCATENATE(Q182,\" \",R182)","v":" "}]
[null,null,null,null,null,null,null,null,null,null,"GONZALES","JOSE","GONZALES JOSE","107057 P",null,null,null,null," "]
[null,null,null,null,null,null,null,null,null,null,"GOREGUES","LOIC","GOREGUES LOIC","143286 A",null,null,null,null," "]
[null,null,null,null,null,null,null,null,null,null,"GOSNON","OLIVIER","GOSNON OLIVIER","127187 V",null,null,null,null," "]
[null,null,null,null,null,null,null,null,null,null,"GOUDIER","DANIELLE","GOUDIER DANIELLE","137446 K",null,null,null,null," "]
[null,null,null,null,null,null,null,null,null,null,"GOUGEAUD","MICHEL","GOUGEAUD MICHEL","137819 T",null,null,null,null," "]
[null,null,null,null,null,null,null,null,null,null,"GOURSAUD","JEAN CLAUDE","GOURSAUD JEAN CLAUDE","143287 B",null,null,null,null," "]
[null,null,null,null,null,null,null,null,null,null,"GOUSSETIS","GEORGES","GOUSSETIS GEORGES","112008 A",null,null,null,null," "]
[null,null,null,null,null,null,null,null,null,null,"GRANDSIRE","ALAIN","GRANDSIRE ALAIN","158946 S",null,null,null,null," "]
[null,null,null,null,null,null,null,null,null,null,"GRENET","LOUIS","GRENET LOUIS","141991 F",null,null,null,null," "]
[null,null,null,null,null,null,null,null,null,null,"GRENU","GUY","GRENU GUY","156138 Q",null,null,null,null," "]
[null,null,null,null,null,null,null,null,null,null,"GRETILLAT","XAVIER","GRETILLAT XAVIER","138447 X",null,null,null,null," "]
[null,null,null,null,null,null,null,null,null,null,"GRICOURT","MARCEL","GRICOURT MARCEL","144380 C",null,null,null,null," "]
[null,null,null,null,null,null,null,null,null,null,"GROSDEMANGE","JULIEN","GROSDEMANGE JULIEN","144620 I",null,null,null,null," "]
[null,null,null,null,null,null,null,null,null,null,"GUERET","GERARD",{"$f":"CONCATENATE(K196,\" \",L196)","v":"GUERET GERARD"},"018138 Q",null,null,null,null," "]
[null,null,null,null,null,null,null,null,null,null,"GUERIN","DAVID","GUERIN DAVID","017939 Z",null,null,null,null," "]
[null,null,null,null,null,null,null,null,null,null,"GUEROULT","DOMINIQUE","GUEROULT DOMINIQUE","157731 X",null,null,null,null," "]
[null,null,null,null,null,null,null,null,null,null,"GUEROUT","JEAN PIERRE","GUEROUT JEAN PIERRE","156477 J",null,null,null,null," "]
[null,null,null,null,null,null,null,null,null,null,"GUIGNON","ERIC","GUIGNON ERIC","017536 M",null,null,null,null," "]
[null,null,null,null,null,null,null,null,null,null,"GUIGNON","JIM","GUIGNON JIM","017537 N",null,null,null,null," "]
[null,null,null,null,null,null,null,null,null,null,"GUILLAUME","MICHEL","GUILLAUME MICHEL","169779 S",null,null,null,null," "]
[null,null,null,null,null,null,null,null,null,null,"GUILOTTE","ALAIN","GUILOTTE ALAIN","017639 L",null,null,null,null," "]
[null,null,null,null,null,null,null,null,null,null,"HABRAN","JEAN PIERRE","HABRAN JEAN PIERRE","163902 E",null,null,null,null," "]
[null,null,null,null,null,null,null,null,null,null,"HAFED","LAURENT","HAFED LAURENT","116626 Q",null,null,null,null," "]
[null,null,null,null,null,null,null,null,null,null,"HAFFRAY","BERTRAND","HAFFRAY BERTRAND","164786 Q",null,null,null,null," "]
[null,null,null,null,null,null,null,null,null,null,"HAUBERDON","RENE","HAUBERDON RENE","140340 S",null,null,null,null," "]
[null,null,null,null,null,null,null,null,null,null,"HEMPEL","JEAN","HEMPEL JEAN","017748 Q",null,null,null,null," "]
[null,null,null,null,null,null,null,null,null,null,"HENRY","CATHERINE","HENRY CATHERINE","156840 D",null,null,null,null," "]
[null,null,null,null,null,null,null,null,null,null,"HENRY","SERGE","HENRY SERGE","017637 J",null,null,null,null," "]
[null,null,null,null,null,null,null,null,null,null,"HIDEE","SEBASTIEN","HIDEE SEBASTIEN","172025 J",null,null,null,null," "]
[null,null,null,null,null,null,null,null,null,null,"HOMMET","CHARLES","HOMMET CHARLES","105787 T",null,null,null,null," "]
[null,null,null,null,null,null,null,null,null,null,"HONDIER","REMY","HONDIER REMY","156765 X",null,null,null,null," "]
[null,null,null,null,null,null,null,null,null,null,"HONG","PHI BANG","HONG PHI BANG","166245 B",null,null,null,null,{"$f":"CONCATENATE(Q214,\" \",R214)","v":" "}]
[null,null,null,null,null,null,null,null,null,null,"HOREL","CHRISTIAN","HOREL CHRISTIAN","106832 Y",null,null,null,null," "]
[null,null,null,null,null,null,null,null,null,null,"HUBERT","CLAUDE","HUBERT CLAUDE","153902 K",null,null,null,null," "]
[null,null,null,null,null,null,null,null,null,null,"HUBERT","YVON","HUBERT YVON","161713 A",null,null,null,null," "]
[null,null,null,null,null,null,null,null,null,null,"HUE","JEAN","HUE JEAN","140475 X",null,null,null,null," "]
[null,null,null,null,null,null,null,null,null,null,"HUGER","MICHEL","HUGER MICHEL","017614 M",null,null,null,null," "]
[null,null,null,null,null,null,null,null,null,null,"JACQ","LAURENT","JACQ LAURENT","017912 Y",null,null,null,null," "]
[null,null,null,null,null,null,null,null,null,null,"JAFFRAY","THIERRY","JAFFRAY THIERRY","104165 J",null,null,null,null," "]
[null,null,null,null,null,null,null,null,null,null,"JAQUINANDI","DANIEL","JAQUINANDI DANIEL","013391 B",null,null,null,null," "]
[null,null,null,null,null,null,null,null,null,null,"JOUINEAU","MICHEL","JOUINEAU MICHEL","017749 R",null,null,null,null," "]
[null,null,null,null,null,null,null,null,null,null,"JUBLOT","DENIS","JUBLOT DENIS","017978 M",null,null,null,null," "]
[null,null,null,null,null,null,null,null,null,null,"JUMELIN","ALEXIS","JUMELIN ALEXIS","172609 T",null,null,null,null," "]
[null,null,null,null,null,null,null,null,null,null,"JUMELIN","EMMANUEL","JUMELIN EMMANUEL","140473 V",null,null,null,null," "]
[null,null,null,null,null,null,null,null,null,null,"KAHOFER","ARNIM","KAHOFER ARNIM","140034 Y",null,null,null,null," "]
[null,null,null,null,null,null,null,null,null,null,"L ESCOP","MARIE LAURE","L ESCOP MARIE LAURE","174237 N",null,null,null,null," "]
[null,null,null,null,null,null,null,null,null,null,"LAIME","ARNAUD","LAIME ARNAUD","173641 Q",null,null,null,null," "]
[null,null,null,null,null,null,null,null,null,null,"LANGEVIN","THIERY","LANGEVIN THIERY","168815 V",null,null,null,null," "]
[null,null,null,null,null,null,null,null,null,null,"LANGLOIS","CHRISTIAN","LANGLOIS CHRISTIAN","018105 J",null,null,null,null," "]
[null,null,null,null,null,null,null,null,null,null,"LAURENT","PHILIPPE","LAURENT PHILIPPE","112307 N",null,null,null,null," "]
[null,null,null,null,null,null,null,null,null,null,"LAURENT","VALERY","LAURENT VALERY","017732 A",null,null,null,null," "]
[null,null,null,null,null,null,null,null,null,null,"LE MOULEC","ALAIN","LE MOULEC ALAIN","135751 F",null,null,null,null," "]
[null,null,null,null,null,null,null,null,null,null,"LE MOULEC","JOHNNY","LE MOULEC JOHNNY","135752 G",null,null,null,null," "]
[null,null,null,null,null,null,null,null,null,null,"LE RAILLER","GERALD","LE RAILLER GERALD","151478 A",null,null,null,null," "]
[null,null,null,null,null,null,null,null,null,null,"LEBOUCHER","PASCAL","LEBOUCHER PASCAL","126223 T",null,null,null,null," "]
[null,null,null,null,null,null,null,null,null,null,"LEBOURGEOIS","PHILIPPE","LEBOURGEOIS PHILIPPE","017763 F",null,null,null,null," "]
[null,null,null,null,null,null,null,null,null,null,"LEBRAS","PHILIPPE","LEBRAS PHILIPPE","168099 R",null,null,null,null," "]
[null,null,null,null,null,null,null,null,null,null,"LECANU","JEAN MARC","LECANU JEAN MARC","169320 T",null,null,null,null," "]
[null,null,null,null,null,null,null,null,null,null,"LECLERC","MARC","LECLERC MARC","165970 C",null,null,null,null," "]
[null,null,null,null,null,null,null,null,null,null,"LECORNE","LAURENT","LECORNE LAURENT","171962 Q",null,null,null,null," "]
[null,null,null,null,null,null,null,null,null,null,"LECUYER","LIONEL","LECUYER LIONEL","142405 D",null,null,null,null," "]
[null,null,null,null,null,null,null,null,null,null,"LEFEBVRE","BERNARD","LEFEBVRE BERNARD","159458 Z",null,null,null,null," "]
[null,null,null,null,null,null,null,null,null,null,"LEFEVRE","PHILIPPE","LEFEVRE PHILIPPE","017875 N",null,null,null,null," "]
[null,null,null,null,null,null,null,null,null,null,"LEFEVRE","YANNICK","LEFEVRE YANNICK","147057 V",null,null,null,null,{"$f":"CONCATENATE(Q246,\" \",R246)","v":" "}]
[null,null,null,null,null,null,null,null,null,null,"LEGEMBRE","KILLIAN","LEGEMBRE KILLIAN","171482 T",null,null,null,null," "]
[null,null,null,null,null,null,null,null,null,null,"LEGENDRE","CEDRIC","LEGENDRE CEDRIC","011123 V",null,null,null,null," "]
[null,null,null,null,null,null,null,null,null,null,"LEGENDRE","CHARLES","LEGENDRE CHARLES","153994 K",null,null,null,null," "]
[null,null,null,null,null,null,null,null,null,null,"LEGENDRE","GERARD","LEGENDRE GERARD","131482 A",null,null,null,null," "]
[null,null,null,null,null,null,null,null,null,null,"LEGENDRE","NATHAN","LEGENDRE NATHAN","148558 B",null,null,null,null," "]
[null,null,null,null,null,null,null,null,null,null,"LEGRAND","PATRICK","LEGRAND PATRICK","166710 G",null,null,null,null," "]
[null,null,null,null,null,null,null,null,null,null,"LEGRAND","PHILIPPE","LEGRAND PHILIPPE","166852 L",null,null,null,null," "]
[null,null,null,null,null,null,null,null,null,null,"LEGRET","ALEXIAN","LEGRET ALEXIAN","144318 S",null,null,null,null," "]
[null,null,null,null,null,null,null,null,null,null,"LEGROS","JACKIE","LEGROS JACKIE","141622 A",null,null,null,null," "]
[null,null,null,null,null,null,null,null,null,null,"LEHARIVEL","DENIS","LEHARIVEL DENIS","124649 F",null,null,null,null," "]
[null,null,null,null,null,null,null,null,null,null,"LEHMANN","ANDRE","LEHMANN ANDRE","168202 D",null,null,null,null," "]
[null,null,null,null,null,null,null,null,null,null,"LEJEUNE","BRUNO","LEJEUNE BRUNO","166608 W",null,null,null,null," "]
[null,null,null,null,null,null,null,null,null,null,"LELEVRIER","MICHEL","LELEVRIER MICHEL","153100 N",null,null,null,null," "]
[null,null,null,null,null,null,null,null,null,null,"LELIEVRE","ANTOINE",{"$f":"CONCATENATE(K260,\" \",L260)","v":"LELIEVRE ANTOINE"},"166141 N",null,null,null,null," "]
[null,null,null,null,null,null,null,null,null,null,"LELOIR","MICHEL","LELOIR MICHEL","017997 F",null,null,null,null," "]
[null,null,null,null,null,null,null,null,null,null,"LEMARINIER","JEAN FRANCOIS","LEMARINIER JEAN FRANCOIS","173889 K",null,null,null,null," "]
[null,null,null,null,null,null,null,null,null,null,"LEMOIGNE","PIERRE","LEMOIGNE PIERRE","127747 J",null,null,null,null," "]
[null,null,null,null,null,null,null,null,null,null,"LENOIR","JEAN MARC","LENOIR JEAN MARC","169351 C",null,null,null,null," "]
[null,null,null,null,null,null,null,null,null,null,"LEPINAY","PIERRE","LEPINAY PIERRE","017597 V",null,null,null,null," "]
[null,null,null,null,null,null,null,null,null,null,"LEPLANOIS","FRANCK","LEPLANOIS FRANCK","169235 B",null,null,null,null," "]
[null,null,null,null,null,null,null,null,null,null,"LEPLANOIS","VIRGINIE","LEPLANOIS VIRGINIE","169234 A",null,null,null,null," "]
[null,null,null,null,null,null,null,null,null,null,"LEPORQ","FRANCOIS","LEPORQ FRANCOIS","131887 P",null,null,null,null," "]
[null,null,null,null,null,null,null,null,null,null,"LEPRETRE","BERNARD","LEPRETRE BERNARD","164248 F",null,null,null,null," "]
[null,null,null,null,null,null,null,null,null,null,"LEROI","JEAN CLAUDE","LEROI JEAN CLAUDE","147405 Y",null,null,null,null," "]
[null,null,null,null,null,null,null,null,null,null,"LESCAN","JACQUES","LESCAN JACQUES","138167 D",null,null,null,null," "]
[null,null,null,null,null,null,null,null,null,null,"LESELLIER","PASCAL","LESELLIER PASCAL","017786 C",null,null,null,null," "]
[null,null,null,null,null,null,null,null,null,null,"LETELLIER","GILLES","LETELLIER GILLES","172274 E",null,null,null,null," "]
[null,null,null,null,null,null,null,null,null,null,"LETORT","SEBASTIEN","LETORT SEBASTIEN","173902 Z"]
[null,null,null,null,null,null,null,null,null,null,"LETOURNEUR","ALAIN","LETOURNEUR ALAIN","133469 L",null,null,null,null,{"$f":"CONCATENATE(Q275,\" \",R275)","v":" "}]
[null,null,null,null,null,null,null,null,null,null,"LETRESOR","MAURICE","LETRESOR MAURICE","116603 T",null,null,null,null," "]
[null,null,null,null,null,null,null,null,null,null,"LETULLIER","BRUNO","LETULLIER BRUNO","135753 H",null,null,null,null," "]
[null,null,null,null,null,null,null,null,null,null,"LEVIF","GUY","LEVIF GUY","173954 F",null,null,null,null," "]
[null,null,null,null,null,null,null,null,null,null,"LEVILLAIN BEURIOT","THOMAS","LEVILLAIN BEURIOT THOMAS","166696 R",null,null,null,null," "]
[null,null,null,null,null,null,null,null,null,null,"LHEUREUX","RICHARD","LHEUREUX RICHARD","133458 A",null,null,null,null," "]
[null,null,null,null,null,null,null,null,null,null,"LIARD","BERNARD","LIARD BERNARD","106833 Z",null,null,null,null," "]
[null,null,null,null,null,null,null,null,null,null,"LIBERGE","PIERRE","LIBERGE PIERRE","137544 E",null,null,null,null," "]
[null,null,null,null,null,null,null,null,null,null,"LIBERT","LOUIS PIERRE","LIBERT LOUIS PIERRE","147566 Y",null,null,null,null," "]
[null,null,null,null,null,null,null,null,null,null,"LINGRAND","BERNARD","LINGRAND BERNARD","162572 J",null,null,null,null," "]
[null,null,null,null,null,null,null,null,null,null,"LOR","MAHINA","LOR MAHINA","173857 A",null,null,null,null," "]
[null,null,null,null,null,null,null,null,null,null,"LORGET","EMMANUEL","LORGET EMMANUEL","144781 N",null,null,null,null," "]
[null,null,null,null,null,null,null,null,null,null,"LOURSEL","ALAIN","LOURSEL ALAIN","017731 Z",null,null,null,null," "]
[null,null,null,null,null,null,null,null,null,null,"LOZANO","ROBERT","LOZANO ROBERT","140673 N",null,null,null,null," "]
[null,null,null,null,null,null,null,null,null,null,"MAGNAN","JEAN LUC","MAGNAN JEAN LUC","018043 Z",null,null,null,null," "]
[null,null,null,null,null,null,null,null,null,null,"MAHEUT","ALEXANDRE","MAHEUT ALEXANDRE","160531 Q",null,null,null,null," "]
[null,null,null,null,null,null,null,null,null,null,"MAHIEU","NORBERT","MAHIEU NORBERT","122711 R",null,null,null,null," "]
[null,null,null,null,null,null,null,null,null,null,"MAISON","MICHEL","MAISON MICHEL","150113 R",null,null,null,null," "]
[null,null,null,null,null,null,null,null,null,null,"MALLET","PHILIPPE","MALLET PHILIPPE","150883 D",null,null,null,null," "]
[null,null,null,null,null,null,null,null,null,null,"MANIER","MARIE JOSE","MANIER MARIE JOSE","145698 U",null,null,null,null," "]
[null,null,null,null,null,null,null,null,null,null,"MARCIENNE","JEAN BAPTISTE","MARCIENNE JEAN BAPTISTE","172502 C",null,null,null,null," "]
[null,null,null,null,null,null,null,null,null,null,"MARGERIE","ERIC","MARGERIE ERIC","168814 T",null,null,null,null," "]
[null,null,null,null,null,null,null,null,null,null,"MARSAIS","RAPHAEL","MARSAIS RAPHAEL","171976 F",null,null,null,null," "]
[null,null,null,null,null,null,null,null,null,null,"MARTINS","JOSE BRAZ","MARTINS JOSE BRAZ","154240 C",null,null,null,null," "]
[null,null,null,null,null,null,null,null,null,null,"MARTORY","PASCAL","MARTORY PASCAL","017664 K",null,null,null,null," "]
[null,null,null,null,null,null,null,null,null,null,"MARTORY","PIERRE","MARTORY PIERRE","144782 O",null,null,null,null," "]
[null,null,null,null,null,null,null,null,null,null,"MARY","JEAN CLAUDE","MARY JEAN CLAUDE","153309 Q",null,null,null,null," "]
[null,null,null,null,null,null,null,null,null,null,"MARZIALE","PASCAL","MARZIALE PASCAL","173636 K",null,null,null,null," "]
[null,null,null,null,null,null,null,null,null,null,"MASSON","JEAN PIERRE","MASSON JEAN PIERRE","158108 G",null,null,null,null," "]
[null,null,null,null,null,null,null,null,null,null,"MATEOS","RAYMOND","MATEOS RAYMOND","126235 F",null,null,null,null," "]
[null,null,null,null,null,null,null,null,null,null,"MAULIEN","AXEL","MAULIEN AXEL","170827 G",null,null,null,null," "]
[null,null,null,null,null,null,null,null,null,null,"MAUREY","SERGE","MAUREY SERGE","131534 A",null,null,null,null," "]
[null,null,null,null,null,null,null,null,null,null,"MAZE","JEAN PIERRE","MAZE JEAN PIERRE","137816 Q",null,null,null,null,{"$f":"CONCATENATE(Q307,\" \",R307)","v":" "}]
[null,null,null,null,null,null,null,null,null,null,"MEGNAN","JEAN PIERRE","MEGNAN JEAN PIERRE","133889 P",null,null,null,null," "]
[null,null,null,null,null,null,null,null,null,null,"MERCET","HUGUES","MERCET HUGUES","017744 M",null,null,null,null," "]
[null,null,null,null,null,null,null,null,null,null,"MIGA","LAURENT","MIGA LAURENT","149312 W",null,null,null,null," "]
[null,null,null,null,null,null,null,null,null,null,"MILET","DENIS","MILET DENIS","173484 V",null,null,null,null," "]
[null,null,null,null,null,null,null,null,null,null,"MILLET","DANIEL","MILLET DANIEL","017867 F",null,null,null,null," "]
[null,null,null,null,null,null,null,null,null,null,"MINAULT","JACQUES","MINAULT JACQUES","144302 C",null,null,null,null," "]
[null,null,null,null,null,null,null,null,null,null,"MINOUX","JOEL","MINOUX JOEL","170818 X",null,null,null,null," "]
[null,null,null,null,null,null,null,null,null,null,"MOLIERE","CHRISTIAN","MOLIERE CHRISTIAN","173458 R",null,null,null,null," "]
[null,null,null,null,null,null,null,null,null,null,"MOLINA","CHRISTIAN","MOLINA CHRISTIAN","145457 N",null,null,null,null," "]
[null,null,null,null,null,null,null,null,null,null,"MONNIER","WILLIAM","MONNIER WILLIAM","172325 K",null,null,null,null," "]
[null,null,null,null,null,null,null,null,null,null,"MONTAGNE","JEAN MARIE","MONTAGNE JEAN MARIE","168813 S",null,null,null,null," "]
[null,null,null,null,null,null,null,null,null,null,"MONTOURCY","MARC","MONTOURCY MARC","120315 N",null,null,null,null," "]
[null,null,null,null,null,null,null,null,null,null,"MOREE","JAN","MOREE JAN","166709 F",null,null,null,null," "]
[null,null,null,null,null,null,null,null,null,null,"MOREL","CHRISTIAN","MOREL CHRISTIAN","172880 N",null,null,null,null," "]
[null,null,null,null,null,null,null,null,null,null,"MOREL","FRANCIS","MOREL FRANCIS","142932 K",null,null,null,null," "]
[null,null,null,null,null,null,null,null,null,null,"MOREL","PATRICE","MOREL PATRICE","138381 J",null,null,null,null," "]
[null,null,null,null,null,null,null,null,null,null,"MORLET","JEAN",{"$f":"CONCATENATE(K324,\" \",L324)","v":"MORLET JEAN"},"170315 A",null,null,null,null," "]
[null,null,null,null,null,null,null,null,null,null,"MOTTEAU","LAURENT","MOTTEAU LAURENT","156736 Q",null,null,null,null," "]
[null,null,null,null,null,null,null,null,null,null,"MOULIN","DANIEL","MOULIN DANIEL","159291 S",null,null,null,null," "]
[null,null,null,null,null,null,null,null,null,null,"MOUSSET","DAMIEN","MOUSSET DAMIEN","170094 K",null,null,null,null," "]
[null,null,null,null,null,null,null,null,null,null,"MURICE","JACQUES","MURICE JACQUES","143617 T",null,null,null,null," "]
[null,null,null,null,null,null,null,null,null,null,"NEVEU","ADRIEN","NEVEU ADRIEN","152834 Z",null,null,null,null," "]
[null,null,null,null,null,null,null,null,null,null,"NICOLAS","REMY","NICOLAS REMY","160828 N",null,null,null,null," "]
[null,null,null,null,null,null,null,null,null,null,"NOLLAND","CHRISTIAN","NOLLAND CHRISTIAN","137340 I",null,null,null,null," "]
[null,null,null,null,null,null,null,null,null,null,"NOTHEAUX","JACQUES","NOTHEAUX JACQUES","157733 Z",null,null,null,null," "]
[null,null,null,null,null,null,null,null,null,null,"NOWAK","MICHAEL","NOWAK MICHAEL","017827 R",null,null,null,null," "]
[null,null,null,null,null,null,null,null,null,null,"OGIER","JEAN LUC","OGIER JEAN LUC","173678 F",null,null,null,null," "]
[null,null,null,null,null,null,null,null,null,null,"OUMAZIZ","MARC","OUMAZIZ MARC","169327 B"]
[null,null,null,null,null,null,null,null,null,null,"PAJON","MARIE PIERRE","PAJON MARIE PIERRE","150068 S"]
[null,null,null,null,null,null,null,null,null,null,"PARIS","OLIVIER","PARIS OLIVIER","163529 Z",null,null,null,null,{"$f":"CONCATENATE(Q337,\" \",R337)","v":" "}]
[null,null,null,null,null,null,null,null,null,null,"PATOUREAUX","THIERRY","PATOUREAUX THIERRY","166736 K",null,null,null,null,{"$f":"CONCATENATE(Q338,\" \",R338)","v":" "}]
[null,null,null,null,null,null,null,null,null,null,"PATRICE","BERNARD","PATRICE BERNARD","169924 A",null,null,null,null,{"$f":"CONCATENATE(Q339,\" \",R339)","v":" "}]
[null,null,null,null,null,null,null,null,null,null,"PATRY","BRUNO","PATRY BRUNO","168812 R"]
[null,null,null,null,null,null,null,null,null,null,"PELLETIER","CHRISTIAN","PELLETIER CHRISTIAN","170121 P",null,null,null,null,{"$f":"CONCATENATE(Q341,\" \",R341)","v":" "}]
[null,null,null,null,null,null,null,null,null,null,"PERRET","GUILLAUME","PERRET GUILLAUME","166920 K",null,null,null,null," "]
[null,null,null,null,null,null,null,null,null,null,"PERROT","JACKY","PERROT JACKY","152580 Y",null,null,null,null," "]
[null,null,null,null,null,null,null,null,null,null,"PETIT","JEAN CLAUDE","PETIT JEAN CLAUDE","124014 U",null,null,null,null," "]
[null,null,null,null,null,null,null,null,null,null,"PETIT","JOHANN","PETIT JOHANN","017604 C",null,null,null,null," "]
[null,null,null,null,null,null,null,null,null,null,"PETITGRAND","CLAUDE","PETITGRAND CLAUDE","165969 B",null,null,null,null," "]
[null,null,null,null,null,null,null,null,null,null,"PETITON","YANN","PETITON YANN","100516 A",null,null,null,null," "]
[null,null,null,null,null,null,null,null,null,null,"PHILIPPE","JEAN","PHILIPPE JEAN","149830 J",null,null,null,null," "]
[null,null,null,null,null,null,null,null,null,null,"PICANDET","FRANCOIS","PICANDET FRANCOIS","149401 S",null,null,null,null," "]
[null,null,null,null,null,null,null,null,null,null,"PICARD","ARTHUR","PICARD ARTHUR","160869 H",null,null,null,null," "]
[null,null,null,null,null,null,null,null,null,null,"PICARD","SERGE","PICARD SERGE","167868 Q",null,null,null,null," "]
[null,null,null,null,null,null,null,null,null,null,"PIERREL","BRUNO","PIERREL BRUNO","017817 H",null,null,null,null," "]
[null,null,null,null,null,null,null,null,null,null,"PITOIS","FRANCIS","PITOIS FRANCIS","138573 T",null,null,null,null," "]
[null,null,null,null,null,null,null,null,null,null,"PLOUARD","ROLAND","PLOUARD ROLAND","169328 C",null,null,null,null," "]
[null,null,null,null,null,null,null,null,null,null,"POIGNYE","PATRICK","POIGNYE PATRICK","142977 D",null,null,null,null," "]
[null,null,null,null,null,null,null,null,null,null,"POLARD","VINCENT","POLARD VINCENT","174047 G",null,null,null,null," "]
[null,null,null,null,null,null,null,null,null,null,"POLLET","DIDIER","POLLET DIDIER","112582 C",null,null,null,null," "]
[null,null,null,null,null,null,null,null,null,null,"POLLET","PATRICK","POLLET PATRICK","112044 K",null,null,null,null," "]
[null,null,null,null,null,null,null,null,null,null,"PONTAIS","ADRIEN","PONTAIS ADRIEN","173787 Z",null,null,null,null," "]
[null,null,null,null,null,null,null,null,null,null,"PONTHIEUX","CHRISTIAN","PONTHIEUX CHRISTIAN","017730 Y",null,null,null,null," "]
[null,null,null,null,null,null,null,null,null,null,"PORET","ANDRE","PORET ANDRE","145700 W",null,null,null,null," "]
[null,null,null,null,null,null,null,null,null,null,"POUCHIN","MAX","POUCHIN MAX","018050 G"]
[null,null,null,null,null,null,null,null,null,null,"POULAIN","JOSE","POULAIN JOSE","169329 D",null,null,null,null,{"$f":"CONCATENATE(Q363,\" \",R363)","v":" "}]
[null,null,null,null,null,null,null,null,null,null,"PREVOST","PATRICE","PREVOST PATRICE","115463 X",null,null,null,null," "]
[null,null,null,null,null,null,null,null,null,null,"PREVOST","ROGER","PREVOST ROGER","131485 D",null,null,null,null," "]
[null,null,null,null,null,null,null,null,null,null,"PRIEUR","SEBASTIEN","PRIEUR SEBASTIEN","118093 B",null,null,null,null," "]
[null,null,null,null,null,null,null,null,null,null,"PRIN","MICHAEL","PRIN MICHAEL","149403 V",null,null,null,null," "]
[null,null,null,null,null,null,null,null,null,null,"PRUVOST","MICHEL","PRUVOST MICHEL","137451 P",null,null,null,null," "]
[null,null,null,null,null,null,null,null,null,null,"QUEILLE","RICHARD","QUEILLE RICHARD","162896 L"]
[null,null,null,null,null,null,null,null,null,null,"QUEREY","ANDRE","QUEREY ANDRE","101636 C",null,null,null,null,{"$f":"CONCATENATE(Q370,\" \",R370)","v":" "}]
[null,null,null,null,null,null,null,null,null,null,"QUESNEL","MATHIEU","QUESNEL MATHIEU","174415 G",null,null,null,null,{"$f":"CONCATENATE(Q371,\" \",R371)","v":" "}]
[null,null,null,null,null,null,null,null,null,null,"QUESNOT","LIONNEL","QUESNOT LIONNEL","140480 C",null,null,null,null,{"$f":"CONCATENATE(Q372,\" \",R372)","v":" "}]
[null,null,null,null,null,null,null,null,null,null,"QUILLAUD","PAULETTE","QUILLAUD PAULETTE","159713 B"]
[null,null,null,null,null,null,null,null,null,null,"RACHET","ALAIN","RACHET ALAIN","017909 V",null,null,null,null,{"$f":"CONCATENATE(Q374,\" \",R374)","v":" "}]
[null,null,null,null,null,null,null,null,null,null,"RAMDANI","IBRAHIM","RAMDANI IBRAHIM","154864 F",null,null,null,null," "]
[null,null,null,null,null,null,null,null,null,null,"REAUDIN","GERARD","REAUDIN GERARD","017727 V",null,null,null,null," "]
[null,null,null,null,null,null,null,null,null,null,"REIBAUD","JEAN PAUL","REIBAUD JEAN PAUL","173650 A",null,null,null,null," "]
[null,null,null,null,null,null,null,null,null,null,"REICHSTADT","ERIC","REICHSTADT ERIC","163598 Z",null,null,null,null," "]
[null,null,null,null,null,null,null,null,null,null,"RIGOLET","GEORGES","RIGOLET GEORGES","141079 D",null,null,null,null," "]
[null,null,null,null,null,null,null,null,null,null,"RIGUET","PATRICK","RIGUET PATRICK","173896 S",null,null,null,null," "]
[null,null,null,null,null,null,null,null,null,null,"RIPOLL","JEAN YVES","RIPOLL JEAN YVES","118084 S",null,null,null,null," "]
[null,null,null,null,null,null,null,null,null,null,"RIVOAL","CYRILLE","RIVOAL CYRILLE","140476 Y",null,null,null,null," "]
[null,null,null,null,null,null,null,null,null,null,"ROBERGE","BRUNO","ROBERGE BRUNO","017572 W",null,null,null,null," "]
[null,null,null,null,null,null,null,null,null,null,"ROBERT","MARCEL","ROBERT MARCEL","173953 E",null,null,null,null," "]
[null,null,null,null,null,null,null,null,null,null,"ROBERT","PIERRE","ROBERT PIERRE","134861 Z",null,null,null,null," "]
[null,null,null,null,null,null,null,null,null,null,"RODRIGUEZ","QUINTIN","RODRIGUEZ QUINTIN","172738 J",null,null,null,null," "]
[null,null,null,null,null,null,null,null,null,null,"ROHART","THIERRY",{"$f":"CONCATENATE(K387,\" \",L387)","v":"ROHART THIERRY"},"148983 N",null,null,null,null," "]
[null,null,null,null,null,null,null,null,null,null,"ROLLAND","ALAIN","ROLLAND ALAIN","144165 V",null,null,null,null," "]
[null,null,null,null,null,null,null,null,null,null,"RONDU","JACQUES","RONDU JACQUES","155024 E",null,null,null,null," "]
[null,null,null,null,null,null,null,null,null,null,"ROQUIGNY","REMY","ROQUIGNY REMY","127143 D",null,null,null,null," "]
[null,null,null,null,null,null,null,null,null,null,"ROSE","THIERRY","ROSE THIERRY","173855 Y",null,null,null,null," "]
[null,null,null,null,null,null,null,null,null,null,"ROSSI","FRANCIS","ROSSI FRANCIS","172007 P",null,null,null,null," "]
[null,null,null,null,null,null,null,null,null,null,"ROUFFET","MICHEL","ROUFFET MICHEL","174167 M",null,null,null,null," "]
[null,null,null,null,null,null,null,null,null,null,"ROUSSEL","ANNE","ROUSSEL ANNE","174112 C",null,null,null,null," "]
[null,null,null,null,null,null,null,null,null,null,"ROUSSET","JEAN PAUL","ROUSSET JEAN PAUL","153670 H",null,null,null,null," "]
[null,null,null,null,null,null,null,null,null,null,"ROYE","EMMANUEL","ROYE EMMANUEL","171889 L",null,null,null,null," "]
[null,null,null,null,null,null,null,null,null,null,"RUEDA","RENE","RUEDA RENE","017721 P",null,null,null,null," "]
[null,null,null,null,null,null,null,null,null,null,"SAMMUT","JEAN CLAUDE","SAMMUT JEAN CLAUDE","147880 P",null,null,null,null," "]
[null,null,null,null,null,null,null,null,null,null,"SAMSON","RONALD","SAMSON RONALD","017495 X",null,null,null,null," "]
[null,null,null,null,null,null,null,null,null,null,"SANDT","CHRISTIAN","SANDT CHRISTIAN","149174 W",null,null,null,null," "]
[null,null,null,null,null,null,null,null,null,null,"SAUVAGE","JEAN PAUL","SAUVAGE JEAN PAUL","158548 K",null,null,null,null," "]
[null,null,null,null,null,null,null,null,null,null,"SAUVAGE","XAVIER","SAUVAGE XAVIER","166458 H",null,null,null,null," "]
[null,null,null,null,null,null,null,null,null,null,"SCHMITT","CLAUDE","SCHMITT CLAUDE","017478 G",null,null,null,null," "]
[null,null,null,null,null,null,null,null,null,null,"SCHWARTZ","ALAIN","SCHWARTZ ALAIN","149904 P",null,null,null,null," "]
[null,null,null,null,null,null,null,null,null,null,"SEGARD","PAUL","SEGARD PAUL","170495 W",null,null,null,null," "]
[null,null,null,null,null,null,null,null,null,null,"SENCERT","DIDIER","SENCERT DIDIER","109089 T",null,null,null,null,{"$f":"CONCATENATE(Q406,\" \",R406)","v":" "}]
[null,null,null,null,null,null,null,null,null,null,"SIMON","ANDRE","SIMON ANDRE","122927 Z",null,null,null,null," "]
[null,null,null,null,null,null,null,null,null,null,"SMITH","HELENE","SMITH HELENE","152576 T",null,null,null,null," "]
[null,null,null,null,null,null,null,null,null,null,"SMITH","LOUIS","SMITH LOUIS","152577 V",null,null,null,null," "]
[null,null,null,null,null,null,null,null,null,null,"SOENEN","JOSE","SOENEN JOSE","174338 Y",null,null,null,null," "]
[null,null,null,null,null,null,null,null,null,null,"SOLMON","HERVE","SOLMON HERVE","017626 Y",null,null,null,null," "]
[null,null,null,null,null,null,null,null,null,null,"SORTAIS","CLAUDE","SORTAIS CLAUDE","017602 A",null,null,null,null," "]
[null,null,null,null,null,null,null,null,null,null,"SOUAZE","YOHANN","SOUAZE YOHANN","171170 E",null,null,null,null," "]
[null,null,null,null,null,null,null,null,null,null,"SOULLIER","GINO","SOULLIER GINO","164003 P",null,null,null,null," "]
[null,null,null,null,null,null,null,null,null,null,"STAIGRE","JEROME","STAIGRE JEROME","018141 T",null,null,null,null," "]
[null,null,null,null,null,null,null,null,null,null,"STRAGIER","MICHEL","STRAGIER MICHEL","139941 J",null,null,null,null," "]
[null,null,null,null,null,null,null,null,null,null,"TALBOT","MICHEL","TALBOT MICHEL","017544 U",null,null,null,null," "]
[null,null,null,null,null,null,null,null,null,null,"TALBOT","REGIS","TALBOT REGIS","170812 Q",null,null,null,null," "]
[null,null,null,null,null,null,null,null,null,null,"TELLIER","BRUNO","TELLIER BRUNO","143284 Y",null,null,null,null," "]
[null,null,null,null,null,null,null,null,null,null,"THOMAS","JEANNE","THOMAS JEANNE","163589 P",null,null,null,null," "]
[null,null,null,null,null,null,null,null,null,null,"THOMAS","PIERRE","THOMAS PIERRE","166071 M",null,null,null,null," "]
[null,null,null,null,null,null,null,null,null,null,"THORY","MICHEL","THORY MICHEL","126230 A",null,null,null,null," "]
[null,null,null,null,null,null,null,null,null,null,"THUILLIER","JEAN CLAUDE","THUILLIER JEAN CLAUDE","017671 R",null,null,null,null," "]
[null,null,null,null,null,null,null,null,null,null,"THUILLIER","PIERRE","THUILLIER PIERRE","136729 V",null,null,null,null," "]
[null,null,null,null,null,null,null,null,null,null,"TOSTAIN","ALEX","TOSTAIN ALEX","169973 D"]
[null,null,null,null,null,null,null,null,null,null,"TOUCHAIS","JEAN YVES","TOUCHAIS JEAN YVES","170915 C",null,null,null,null,{"$f":"CONCATENATE(Q426,\" \",R426)","v":" "}]
[null,null,null,null,null,null,null,null,null,null,"TOUTAIN","REMI","TOUTAIN REMI","159676 L",null,null,null,null," "]
[null,null,null,null,null,null,null,null,null,null,"TREHET","SERGE","TREHET SERGE","018140 S",null,null,null,null," "]
[null,null,null,null,null,null,null,null,null,null,"TROUSSIER","PIERRE","TROUSSIER PIERRE","017498 A",null,null,null,null," "]
[null,null,null,null,null,null,null,null,null,null,"TURPIN","DOMINIQUE","TURPIN DOMINIQUE","169854 Z",null,null,null,null," "]
[null,null,null,null,null,null,null,null,null,null,"TY","JOSHUA","TY JOSHUA","161122 H",null,null,null,null," "]
[null,null,null,null,null,null,null,null,null,null,"VALLOIS","CHRISTOPHE","VALLOIS CHRISTOPHE","166311 Y",null,null,null,null," "]
[null,null,null,null,null,null,null,null,null,null,"VARACHE","ALBAN","VARACHE ALBAN","100599 F",null,null,null,null," "]
[null,null,null,null,null,null,null,null,null,null,"VARACHE","SERGE","VARACHE SERGE","017650 W",null,null,null,null," "]
[null,null,null,null,null,null,null,null,null,null,"VARIGNON","DOMINIQUE","VARIGNON DOMINIQUE","131487 F"]
[null,null,null,null,null,null,null,null,null,null,"VELLA","PIERRE","VELLA PIERRE","152825 P",null,null,null,null,{"$f":"CONCATENATE(Q436,\" \",R436)","v":" "}]
[null,null,null,null,null,null,null,null,null,null,"VERDREL","DIDIER","VERDREL DIDIER","139912 G",null,null,null,null," "]
[null,null,null,null,null,null,null,null,null,null,"VEREL","SEBASTIEN","VEREL SEBASTIEN","141213 H",null,null,null,null," "]
[null,null,null,null,null,null,null,null,null,null,"VICTORIA","VINCENT","VICTORIA VINCENT","100615 V",null,null,null,null," "]
[null,null,null,null,null,null,null,null,null,null,"VIGNE","PIERRE","VIGNE PIERRE","018005 N",null,null,null,null," "]
[null,null,null,null,null,null,null,null,null,null,"VIMBERT","JEAN","VIMBERT JEAN","017991 Z",null,null,null,null," "]
[null,null,null,null,null,null,null,null,null,null,"VINCENT","DANIEL","VINCENT DANIEL","126236 G",null,null,null,null," "]
[null,null,null,null,null,null,null,null,null,null,"VISIEDO","GABRIEL","VISIEDO GABRIEL","174306 N",null,null,null,null," "]
[null,null,null,null,null,null,null,null,null,null,"VIVES","PASCAL","VIVES PASCAL","174310 S",null,null,null,null," "]
[null,null,null,null,null,null,null,null,null,null,"VUILLEQUEY","GEORGES","VUILLEQUEY GEORGES","166757 H",null,null,null,null," "]
[null,null,null,null,null,null,null,null,null,null,"WATRIQUANT","PHILIPPE","WATRIQUANT PHILIPPE","149872 E",null,null,null,null," "]
[null,null,null,null,null,null,null,null,null,null,"WILLEMS","MICHEL","WILLEMS MICHEL","100616 W",null,null,null,null," "]
[null,null,null,null,null,null,null,null,null,null,"WILLEMYNS","JACK","WILLEMYNS JACK","126237 H"]
[null,null,null,null,null,null,null,null,null,null,null,null," ",null,null,null,null,null,{"$f":"CONCATENATE(Q449,\" \",R449)","v":" "}]
[null,null,null,null,null,null,null,null,null,null,null,null," ",null,null,null,null,null,{"$f":"CONCATENATE(Q450,\" \",R450)","v":" "}]
[null,null,null,null,null,null,null,null,null,null,null,null,{"$f":"CONCATENATE(K451,\" \",L451)","v":" "},null,null,null,null,null,{"$f":"CONCATENATE(Q451,\" \",R451)","v":" "}]
[null,null,null,null,null,null,null,null,null,null,null,null," ",null,null,null,null,null,{"$f":"CONCATENATE(Q452,\" \",R452)","v":" "}]
[null,null,null,null,null,null,null,null,null,null,null,null," "]
[null,null,null,null,null,null,null,null,null,null,null,null," "]
[null,null,null,null,null,null,null,null,null,null,null,null," "]
[null,null,null,null,null,null,null,null,null,null,null,null," "]
[null,null,null,null,null,null,null,null,null,null,null,null," "]
[null,null,null,null,null,null,null,null,null,null,null,null," "]
[null,null,null,null,null,null,null,null,null,null,null,null," "]
[null,null,null,null,null,null,null,null,null,null,null,null," "]
[null,null,null,null,null,null,null,null,null,null,null,null," "]
[null,null,null,null,null,null,null,null,null,null,null,null," "]
[null,null,null,null,null,null,null,null,null,null,null,null," "]
[null,null,null,null,null,null,null,null,null,null,null,null," "]
[null,null,null,null,null,null,null,null,null,null,null,null," "]
[null,null,null,null,null,null,null,null,null,null,null,null," "]
[null,null,null,null,null,null,null,null,null,null,null,null," "]
[null,null,null,null,null,null,null,null,null,null,null,null," "]
[null,null,null,null,null,null,null,null,null,null,null,null," "]
[null,null,null,null,null,null,null,null,null,null,null,null," "]
[null,null,null,null,null,null,null,null,null,null,null,null," "]
[null,null,null,null,null,null,null,null,null,null,null,null," "]
[null,null,null,null,null,null,null,null,null,null,null,null," "]
[null,null,null,null,null,null,null,null,null,null,null,null," "]
[null,null,null,null,null,null,null,null,null,null,null,null," "]
[null,null,null,null,null,null,null,null,null,null,null,null," "]
[null,null,null,null,null,null,null,null,null,null,null,null," "]
[null,null,null,null,null,null,null,null,null,null,null,null," "]
[null,null,null,null,null,null,null,null,null,null,null,null," "]

{"sheet":"Licenciés","index":2,"n_rows":447,"n_cols":3,"rows_kept":447,"cut":false,"hidden":true,"merged":[]}
["162296 J","ABAD","JEAN"]
["017652 Y","ADNET","FABRICE"]
["134671 R","AHAMD","ABDUZALIL"]
["017869 H","ALEXANDRE","JACQUES"]
["165041 S","ALLIX","GERARD"]
["174243 V","AMELINE","JEAN JACQUES"]
["017606 E","ANTEM","ANTOINE"]
["173854 X","ARFELLI","GILLES"]
["137351 T","ARGENTIN","JEAN LUC"]
["100560 S","ARRIVE","JEAN LUC"]
["017803 T","AZIZIAN","RICHARD"]
["172578 K","BAERT","PHILIPPE"]
["153013 T","BAIS","PHILIPPE"]
["173722 D","BALTER","PATRICK"]
["163804 Y","BARETTE","ROMAIN"]
["017754 W","BATAILLE","VINCENT"]
["017531 H","BATTE","JEAN MARC"]
["017689 J","BAUDER","GILBERT"]
["148240 F","BAUX","REGIS"]
["122758 M","BAZAUD","FRANCK"]
["161679 N","BEAUGRAND","CHRISTIAN"]
["112270 C","BELDAME","DANIEL"]
["017706 A","BELINY","GILLES"]
["017734 C","BENDJEMILA","TOFIR"]
["129135 T","BERMENT","DIDIER"]
["142970 W","BERTRAND","MICHEL"]
["172500 A","BESLIN","DANIEL"]
["017629 B","BETON","DOMINIQUE"]
["147263 T","BETON","VALERIE"]
["137339 H","BEZARD","GEORGES"]
["169239 F","BEZNOSUC","MARIE JOSE"]
["106781 Z","BIANCHINI","JEAN ROBERT"]
["160279 R","BIDAULT","ALAIN"]
["017497 Z","BIETTE","CLAUDE"]
["017465 T","BILLARD","DAVID"]
["144155 L","BLONDEL","JEAN THIERRY"]
["112554 A","BOCQUAIN","JEAN PIERRE"]
["138293 Z","BOGO","JACQUES"]
["144156 M","BONHOMME","ERIC"]
["174332 R","BOSSI","DAMIEN"]
["174334 T","BOSSI","GASPARD"]
["174333 S","BOSSI","MARTIN"]
["149537 Q","BOUGOUIN","JEAN MICHEL"]
["174256 J","BOULAIRE","PATRICK"]
["152578 W","BOULIER","ALAIN"]
["017466 U","BOURGET","ALAIN"]
["163734 X","BOUTILLOT","CHRISTIAN"]
["124623 F","BOUTIN","GUY"]
["153690 E","BOUTTIER","JACKY"]
["149399 Q","BOUVIER","BERTRAND"]
["149400 R","BOUVIER","GUILLAUME"]
["160931 A","BRAEMS","FLORIAN"]
["131474 S","BRASSE","DANIEL"]
["127508 E","BRETTEVILLE","DENIS"]
["107038 W","BROWANG","CLAUDE"]
["107039 X","BROWANG","JEROME"]
["107040 Y","BROWANG","MICHEL"]
["017658 E","BRULARD","DANIEL"]
["017746 O","BRUNET","ANDRE"]
["173097 Z","BUCHET MAULIEN","ISABELLE"]
["169893 R","BURGOT","FRANCINE"]
["169892 Q","BURGOT","FRANCOIS"]
["171767 D","BUSTOS","MIGUEL ANGEL"]
["017610 I","BUTELET","JEAN PAUL"]
["158947 T","CADINOT","SEBASTIEN"]
["166291 B","CALLENS","TIMEO"]
["173468 C","CANNEVIERE","PATRICIA"]
["174111 B","CANU","BERTRAND"]
["158920 P","CAPELLE","CLAUDE"]
["112578 Y","CARDON","JEAN PIERRE"]
["152654 D","CARPENTIER","DIDIER"]
["017467 V","CARRE","PIERRE"]
["104533 N","CAUWET","NOEL"]
["017643 P","CAZAUX","JEAN MARC"]
["167848 T","CAZEAUBON","SERGE"]
["017621 T","CHAGNOT","JEAN CLAUDE"]
["018027 J","CHALVET","PATRICE"]
["159430 T","CHAMP","FRANCOIS"]
["137817 R","CHAPLEAU","FRANCOIS"]
["127340 S","CHARBONNIER","PHILIPPE"]
["133832 K","CHESNEAU","JACQUES"]
["017896 I","CHESNEL","MATHIEU"]
["173153 K","CHEVALIER","CEDRIC"]
["126208 E","CHEVALIER","PHILIPPE"]
["107240 Q","CHOLLET","LIONEL"]
["133876 C","CHOQUART","PIERRE"]
["151711 D","CHOUPAUT","BRUNO"]
["145961 X","COCHARD","PATRICK"]
["017709 D","COCY","GILLES"]
["166629 T","COGNEE","BRUNO"]
["017823 N","COLLE","GREGORY"]
["172023 G","COLLE CONTE","LUDOVIC"]
["172501 B","COLOMER","ALAIN"]
["173469 D","CORNILLEAUX","ALAIN"]
["142307 J","CORNO","YVES"]
["017516 S","COTTEN","JEAN PIERRE"]
["112010 C","COUCHOT","BERNARD"]
["136041 J","COUCKE","CHRISTIAN"]
["145454 K","CRESCI","PIERRE"]
["017543 T","CUGNIN","GEORGES"]
["143612 O","CURCIO","JEAN DENIS"]
["120322 U","CUVIER","GILLES"]
["150560 C","CUVILLIEZ","FRANCOISE"]
["145242 G","DAIGLE","MICHEL"]
["148177 M","DAUSSY","JEAN CLAUDE"]
["106284 W","DAUTRY","ANNICK"]
["144074 I","DAVITTI","CLAUDE"]
["017482 K","DAVOINE","BRUNO"]
["163749 N","DAYRAS","PHILIPPE"]
["017476 E","DE TOFFOLI","JEAN ANTOINE"]
["168981 A","DELALANDRE","FRANCOIS"]
["168982 B","DELALANDRE","VERONIQUE"]
["110690 I","DELALONDRE","MAX"]
["129114 Y","DELAMARRE","ERIC"]
["136045 N","DELAPORTE","FELIX"]
["165274 W","DELARUE","JEAN FRANCOIS"]
["129402 A","DELEGLISE","THIERRY"]
["100518 C","DELIGNY","JEAN CLAUDE"]
["124007 N","DEMERE","CHRISTIAN"]
["162693 Q","DENIS","ERIC"]
["168817 X","DENZEN LELAIDIER","DOLCHE"]
["142823 F","DEPARIS","PATRICK"]
["172071 J","DESCHAMPS","MICHEL"]
["169252 V","DESHERAUD","RAYMOND"]
["172881 P","DESIL","ERIC"]
["173474 J","DESRUES","PATRICK"]
["122704 K","DEVILLERS","JACQUES"]
["017627 Z","DEZETANT","MARCEL"]
["109583 T","DIAGA RADJOU","VINCENT"]
["173470 E","DOGUET","DENIS"]
["164326 Q","DOMENGER","JEAN FRANCOIS"]
["017790 G","DONNEGER","ABEL"]
["126212 I","DU BOUCHAGE","MICKAEL"]
["169451 L","DUBOIS","THIERRY"]
["164840 Z","DUCATHE","PHILIPPE"]
["145451 H","DUCROCQ","DIDIER"]
["173897 T","DUGUET","DIDIER"]
["163172 L","DUMARTIN","BERTRAND"]
["136046 O","DUMOND","PIERRE"]
["017926 M","DUMONT","DOMINIQUE"]
["161710 X","DUONG","KHENN"]
["112556 C","DUPONCHEL","ALAIN"]
["100586 S","DUPRE","PATRICK"]
["173817 G","DUPREZ","GREGORY"]
["138224 I","DURANTI","GILLES"]
["168816 W","DURDEK","ALAIN"]
["017820 K","DUTHIL","JEAN"]
["145692 O","DUTOT","GERALD"]
["157684 W","DUVAL","JEAN PAUL"]
["146926 C","DUVAL","MICHEL"]
["129045 H","DUVAL","RENE"]
["125798 K","EICHHOLTZER","CLAUDE"]
["142933 L","ELIE","JOANNES"]
["174331 Q","ENAULT","PATRICE"]
["017986 U","ERONTE","MICHEL"]
["112009 B","ESLIER","GUY"]
["159595 Y","EUDIER","DIDIER"]
["157076 K","EVRARD","JAMES"]
["013085 H","FACQUET","VINCENT"]
["012137 V","FAISANT","RAYMOND"]
["141784 G","FERNANDEZ","ROBIN"]
["164847 G","FERRON","JEAN MARC"]
["169338 N","FESTE","MICHEL"]
["100521 F","FLEURY","YVES"]
["131886 O","FONTAINE","YANN"]
["168801 E","FOSSEY","MATHIEU"]
["104154 Y","FOUCRET","STEPHANE"]
["168691 K","FREGER","XAVIER"]
["147667 H","GARREAU","CYRIL"]
["173956 H","GAURY","FREDERIC"]
["169561 F","GAUTIER","ALAIN"]
["017461 P","GERMAIN","CYRILLE"]
["152579 X","GERVAIS","PHILIPPE"]
["154536 Z","GESTIN","JACQUES"]
["017687 H","GEYER","SERGE"]
["163946 C","GILLE","NICOLAS"]
["102207 B","GILLE","PHILIPPE"]
["013242 I","GILLOT","MARCEL"]
["124614 W","GNOCCHI","GIANPAOLO"]
["126213 J","GODILLE","SYLVAIN"]
["107057 P","GONZALES","JOSE"]
["143286 A","GOREGUES","LOIC"]
["127187 V","GOSNON","OLIVIER"]
["137446 K","GOUDIER","DANIELLE"]
["137819 T","GOUGEAUD","MICHEL"]
["143287 B","GOURSAUD","JEAN CLAUDE"]
["112008 A","GOUSSETIS","GEORGES"]
["158946 S","GRANDSIRE","ALAIN"]
["141991 F","GRENET","LOUIS"]
["156138 Q","GRENU","GUY"]
["138447 X","GRETILLAT","XAVIER"]
["144380 C","GRICOURT","MARCEL"]
["144620 I","GROSDEMANGE","JULIEN"]
["018138 Q","GUERET","GERARD"]
["017939 Z","GUERIN","DAVID"]
["157731 X","GUEROULT","DOMINIQUE"]
["156477 J","GUEROUT","JEAN PIERRE"]
["017536 M","GUIGNON","ERIC"]
["017537 N","GUIGNON","JIM"]
["169779 S","GUILLAUME","MICHEL"]
["017639 L","GUILOTTE","ALAIN"]
["163902 E","HABRAN","JEAN PIERRE"]
["116626 Q","HAFED","LAURENT"]
["164786 Q","HAFFRAY","BERTRAND"]
["140340 S","HAUBERDON","RENE"]
["017748 Q","HEMPEL","JEAN"]
["156840 D","HENRY","CATHERINE"]
["017637 J","HENRY","SERGE"]
["172025 J","HIDEE","SEBASTIEN"]
["105787 T","HOMMET","CHARLES"]
["156765 X","HONDIER","REMY"]
["166245 B","HONG","PHI BANG"]
["106832 Y","HOREL","CHRISTIAN"]
["153902 K","HUBERT","CLAUDE"]
["161713 A","HUBERT","YVON"]
["140475 X","HUE","JEAN"]
["017614 M","HUGER","MICHEL"]
["017912 Y","JACQ","LAURENT"]
["104165 J","JAFFRAY","THIERRY"]
["013391 B","JAQUINANDI","DANIEL"]
["017749 R","JOUINEAU","MICHEL"]
["017978 M","JUBLOT","DENIS"]
["172609 T","JUMELIN","ALEXIS"]
["140473 V","JUMELIN","EMMANUEL"]
["140034 Y","KAHOFER","ARNIM"]
["174237 N","L ESCOP","MARIE LAURE"]
["173641 Q","LAIME","ARNAUD"]
["168815 V","LANGEVIN","THIERY"]
["018105 J","LANGLOIS","CHRISTIAN"]
["112307 N","LAURENT","PHILIPPE"]
["017732 A","LAURENT","VALERY"]
["135751 F","LE MOULEC","ALAIN"]
["135752 G","LE MOULEC","JOHNNY"]
["151478 A","LE RAILLER","GERALD"]
["126223 T","LEBOUCHER","PASCAL"]
["017763 F","LEBOURGEOIS","PHILIPPE"]
["168099 R","LEBRAS","PHILIPPE"]
["169320 T","LECANU","JEAN MARC"]
["165970 C","LECLERC","MARC"]
["171962 Q","LECORNE","LAURENT"]
["142405 D","LECUYER","LIONEL"]
["159458 Z","LEFEBVRE","BERNARD"]
["017875 N","LEFEVRE","PHILIPPE"]
["147057 V","LEFEVRE","YANNICK"]
["171482 T","LEGEMBRE","KILLIAN"]
["011123 V","LEGENDRE","CEDRIC"]
["153994 K","LEGENDRE","CHARLES"]
["131482 A","LEGENDRE","GERARD"]
["148558 B","LEGENDRE","NATHAN"]
["166710 G","LEGRAND","PATRICK"]
["166852 L","LEGRAND","PHILIPPE"]
["144318 S","LEGRET","ALEXIAN"]
["141622 A","LEGROS","JACKIE"]
["124649 F","LEHARIVEL","DENIS"]
["168202 D","LEHMANN","ANDRE"]
["166608 W","LEJEUNE","BRUNO"]
["153100 N","LELEVRIER","MICHEL"]
["166141 N","LELIEVRE","ANTOINE"]
["017997 F","LELOIR","MICHEL"]
["173889 K","LEMARINIER","JEAN FRANCOIS"]
["127747 J","LEMOIGNE","PIERRE"]
["169351 C","LENOIR","JEAN MARC"]
["017597 V","LEPINAY","PIERRE"]
["169235 B","LEPLANOIS","FRANCK"]
["169234 A","LEPLANOIS","VIRGINIE"]
["131887 P","LEPORQ","FRANCOIS"]
["164248 F","LEPRETRE","BERNARD"]
["147405 Y","LEROI","JEAN CLAUDE"]
["138167 D","LESCAN","JACQUES"]
["017786 C","LESELLIER","PASCAL"]
["172274 E","LETELLIER","GILLES"]
["173902 Z","LETORT","SEBASTIEN"]
["133469 L","LETOURNEUR","ALAIN"]
["116603 T","LETRESOR","MAURICE"]
["135753 H","LETULLIER","BRUNO"]
["173954 F","LEVIF","GUY"]
["166696 R","LEVILLAIN BEURIOT","THOMAS"]
["133458 A","LHEUREUX","RICHARD"]
["106833 Z","LIARD","BERNARD"]
["137544 E","LIBERGE","PIERRE"]
["147566 Y","LIBERT","LOUIS PIERRE"]
["162572 J","LINGRAND","BERNARD"]
["173857 A","LOR","MAHINA"]
["144781 N","LORGET","EMMANUEL"]
["017731 Z","LOURSEL","ALAIN"]
["140673 N","LOZANO","ROBERT"]
["018043 Z","MAGNAN","JEAN LUC"]
["160531 Q","MAHEUT","ALEXANDRE"]
["122711 R","MAHIEU","NORBERT"]
["150113 R","MAISON","MICHEL"]
["150883 D","MALLET","PHILIPPE"]
["145698 U","MANIER","MARIE JOSE"]
["172502 C","MARCIENNE","JEAN BAPTISTE"]
["168814 T","MARGERIE","ERIC"]
["171976 F","MARSAIS","RAPHAEL"]
["154240 C","MARTINS","JOSE BRAZ"]
["017664 K","MARTORY","PASCAL"]
["144782 O","MARTORY","PIERRE"]
["153309 Q","MARY","JEAN CLAUDE"]
["173636 K","MARZIALE","PASCAL"]
["158108 G","MASSON","JEAN PIERRE"]
["126235 F","MATEOS","RAYMOND"]
["170827 G","MAULIEN","AXEL"]
["131534 A","MAUREY","SERGE"]
["137816 Q","MAZE","JEAN PIERRE"]
["133889 P","MEGNAN","JEAN PIERRE"]
["017744 M","MERCET","HUGUES"]
["149312 W","MIGA","LAURENT"]
["173484 V","MILET","DENIS"]
["017867 F","MILLET","DANIEL"]
["144302 C","MINAULT","JACQUES"]
["170818 X","MINOUX","JOEL"]
["173458 R","MOLIERE","CHRISTIAN"]
["145457 N","MOLINA","CHRISTIAN"]
["172325 K","MONNIER","WILLIAM"]
["168813 S","MONTAGNE","JEAN MARIE"]
["120315 N","MONTOURCY","MARC"]
["166709 F","MOREE","JAN"]
["172880 N","MOREL","CHRISTIAN"]
["142932 K","MOREL","FRANCIS"]
["138381 J","MOREL","PATRICE"]
["170315 A","MORLET","JEAN"]
["156736 Q","MOTTEAU","LAURENT"]
["159291 S","MOULIN","DANIEL"]
["170094 K","MOUSSET","DAMIEN"]
["143617 T","MURICE","JACQUES"]
["152834 Z","NEVEU","ADRIEN"]
["160828 N","NICOLAS","REMY"]
["137340 I","NOLLAND","CHRISTIAN"]
["Numéro","Nom","Prénom"]
["157733 Z","NOTHEAUX","JACQUES"]
["017827 R","NOWAK","MICHAEL"]
["173678 F","OGIER","JEAN LUC"]
["169327 B","OUMAZIZ","MARC"]
["150068 S","PAJON","MARIE PIERRE"]
["163529 Z","PARIS","OLIVIER"]
["166736 K","PATOUREAUX","THIERRY"]
["169924 A","PATRICE","BERNARD"]
["168812 R","PATRY","BRUNO"]
["170121 P","PELLETIER","CHRISTIAN"]
["166920 K","PERRET","GUILLAUME"]
["152580 Y","PERROT","JACKY"]
["124014 U","PETIT","JEAN CLAUDE"]
["017604 C","PETIT","JOHANN"]
["165969 B","PETITGRAND","CLAUDE"]
["100516 A","PETITON","YANN"]
["149830 J","PHILIPPE","JEAN"]
["149401 S","PICANDET","FRANCOIS"]
["160869 H","PICARD","ARTHUR"]
["167868 Q","PICARD","SERGE"]
["017817 H","PIERREL","BRUNO"]
["138573 T","PITOIS","FRANCIS"]
["169328 C","PLOUARD","ROLAND"]
["142977 D","POIGNYE","PATRICK"]
["174047 G","POLARD","VINCENT"]
["112582 C","POLLET","DIDIER"]
["112044 K","POLLET","PATRICK"]
["173787 Z","PONTAIS","ADRIEN"]
["017730 Y","PONTHIEUX","CHRISTIAN"]
["145700 W","PORET","ANDRE"]
["018050 G","POUCHIN","MAX"]
["169329 D","POULAIN","JOSE"]
["115463 X","PREVOST","PATRICE"]
["131485 D","PREVOST","ROGER"]
["118093 B","PRIEUR","SEBASTIEN"]
["149403 V","PRIN","MICHAEL"]
["137451 P","PRUVOST","MICHEL"]
["162896 L","QUEILLE","RICHARD"]
["101636 C","QUEREY","ANDRE"]
["174415 G","QUESNEL","MATHIEU"]
["140480 C","QUESNOT","LIONNEL"]
["159713 B","QUILLAUD","PAULETTE"]
["017909 V","RACHET","ALAIN"]
["154864 F","RAMDANI","IBRAHIM"]
["017727 V","REAUDIN","GERARD"]
["173650 A","REIBAUD","JEAN PAUL"]
["163598 Z","REICHSTADT","ERIC"]
["141079 D","RIGOLET","GEORGES"]
["173896 S","RIGUET","PATRICK"]
["118084 S","RIPOLL","JEAN YVES"]
["140476 Y","RIVOAL","CYRILLE"]
["017572 W","ROBERGE","BRUNO"]
["173953 E","ROBERT","MARCEL"]
["134861 Z","ROBERT","PIERRE"]
["172738 J","RODRIGUEZ","QUINTIN"]
["148983 N","ROHART","THIERRY"]
["144165 V","ROLLAND","ALAIN"]
["155024 E","RONDU","JACQUES"]
["127143 D","ROQUIGNY","REMY"]
["173855 Y","ROSE","THIERRY"]
["172007 P","ROSSI","FRANCIS"]
["174167 M","ROUFFET","MICHEL"]
["174112 C","ROUSSEL","ANNE"]
["153670 H","ROUSSET","JEAN PAUL"]
["171889 L","ROYE","EMMANUEL"]
["017721 P","RUEDA","RENE"]
["147880 P","SAMMUT","JEAN CLAUDE"]
["017495 X","SAMSON","RONALD"]
["149174 W","SANDT","CHRISTIAN"]
["158548 K","SAUVAGE","JEAN PAUL"]
["166458 H","SAUVAGE","XAVIER"]
["017478 G","SCHMITT","CLAUDE"]
["149904 P","SCHWARTZ","ALAIN"]
["170495 W","SEGARD","PAUL"]
["109089 T","SENCERT","DIDIER"]
["122927 Z","SIMON","ANDRE"]
["152576 T","SMITH","HELENE"]
["152577 V","SMITH","LOUIS"]
["174338 Y","SOENEN","JOSE"]
["017626 Y","SOLMON","HERVE"]
["017602 A","SORTAIS","CLAUDE"]
["171170 E","SOUAZE","YOHANN"]
["164003 P","SOULLIER","GINO"]
["018141 T","STAIGRE","JEROME"]
["139941 J","STRAGIER","MICHEL"]
["017544 U","TALBOT","MICHEL"]
["170812 Q","TALBOT","REGIS"]
["143284 Y","TELLIER","BRUNO"]
["163589 P","THOMAS","JEANNE"]
["166071 M","THOMAS","PIERRE"]
["126230 A","THORY","MICHEL"]
["017671 R","THUILLIER","JEAN CLAUDE"]
["136729 V","THUILLIER","PIERRE"]
["169973 D","TOSTAIN","ALEX"]
["170915 C","TOUCHAIS","JEAN YVES"]
["159676 L","TOUTAIN","REMI"]
["018140 S","TREHET","SERGE"]
["017498 A","TROUSSIER","PIERRE"]
["169854 Z","TURPIN","DOMINIQUE"]
["161122 H","TY","JOSHUA"]
["166311 Y","VALLOIS","CHRISTOPHE"]
["100599 F","VARACHE","ALBAN"]
["017650 W","VARACHE","SERGE"]
["131487 F","VARIGNON","DOMINIQUE"]
["152825 P","VELLA","PIERRE"]
["139912 G","VERDREL","DIDIER"]
["141213 H","VEREL","SEBASTIEN"]
["100615 V","VICTORIA","VINCENT"]
["018005 N","VIGNE","PIERRE"]
["017991 Z","VIMBERT","JEAN"]
["126236 G","VINCENT","DANIEL"]
["174306 N","VISIEDO","GABRIEL"]
["174310 S","VIVES","PASCAL"]
["166757 H","VUILLEQUEY","GEORGES"]
["149872 E","WATRIQUANT","PHILIPPE"]
["100616 W","WILLEMS","MICHEL"]
["126237 H","WILLEMYNS","JACK"]